Workbook

Sheet CNs
E2: 140
B3: mapBiomas | C3: usosUrb | D3: usos | E3: usosUrbCorr | F3: APP | G3: APP50
A4: CN0 | B4: x
A5: CN1 | B5: x | E5: x
A6: CN2 | B6: x | E6: x | F6: x
A7: CN3 | B7: x | E7: x | G7: x
A8: CN4 | B8: x | C8: x
A9: CN5 | B9: x | C9: x | F9: x
A10: CN6 | B10: x | C10: x | G10: x
A11: CN7 | B11: x | D11: x | E11: x
A12: CN8 | B12: x | D12: x | E12: x | F12: x
A13: CN9 | B13: x | D13: x | E13: x | G13: x
A14: CN10 | B14: x | D14: x
A15: CN11 | B15: x | D15: x | F15: x
A16: CN12 | B16: x | D16: x | G16: x

Sheet Percentuais Reor
A1: Classe | B1: CN0 | C1: CN1 | D1: CN2 | E1: CN3 | F1: CN4 | G1: CN5 | H1: CN6 | I1: CN7 | J1: CN8 | K1: CN9 | L1: CN10 | M1: CN11 | N1: CN12
A2: Formação Florestal | B2: 0.1783865321 | C2: 0.1790498711 | D2: 0.2263235801 | E2: 0.2554251189 | F2: 0.1771879684 | G2: 0.2248061294 | H2: 0.2540752395 | I2: 0.2172237222 | J2: 0.2477981566 | K2: 0.2727865189 | L2: 0.2164140191 | M2: 0.2471557583 | N2: 0.2722532103
A3: Formação Savânica | B3: 0.0004655666878 | C3: 0.0004468566428 | D3: 0.0004468566428 | E3: 0.0004468566428 | F3: 0.0004468566428 | G3: 0.0004468566428 | H3: 0.0004468566428 | I3: 0 | J3: 0 | K3: 0 | L3: 0 | M3: 0 | N3: 0
A4: Silvicultura | B4: 0.003789712838 | C4: 0.00378897195 | D4: 0.00378897195 | E4: 0.003695876817 | F4: 0.003770352924 | G4: 0.003770352924 | H4: 0.00367725779 | I4: 0.01402104087 | J4: 0.01181454241 | K4: 0.0110697328 | L4: 0.01405080264 | M4: 0.01183316265 | N4: 0.01109983332
A5: Campo Alagado | B5: 0.001713285411 | C5: 0.00161985533 | D5: 0.001349879442 | E5: 0.001256784308 | F5: 0.001461593603 | G5: 0.001191617714 | H5: 0.00109852258 | I5: 0.0001582720417 | J5: 0.0001582720417 | K5: 0.0001582720417 | L5: 0 | M5: 0 | N5: 0
A6: Pastagem | B6: 0.1298931059 | C6: 0.1291881173 | D6: 0.1267210963 | E6: 0.1230252195 | F6: 0.1270190007 | G6: 0.1245799082 | H6: 0.1208747219 | I6: 0.2780094963 | J6: 0.2599292431 | K6: 0.2455171772 | L6: 0.2771518492 | M6: 0.2587840983 | N6: 0.2447271136
A7: Cana | B7: 0.003799024172 | C7: 0.00378897195 | D7: 0.00376104341 | E7: 0.00370518633 | F7: 0.00378897195 | G7: 0.00376104341 | H7: 0.00370518633 | I7: 0.09971138628 | J7: 0.09895726655 | K7: 0.09781212178 | L7: 0.09980818652 | M7: 0.09910622847 | N7: 0.09791505648
A8: Mosaico de Usos | B8: 0.462140117 | C8: 0.4387666757 | D8: 0.3964642468 | E8: 0.3733859631 | F8: 0.3956729382 | G8: 0.3542083655 | H8: 0.3321261998 | I8: 0.0444651336 | J8: 0.04362722279 | K8: 0.04263103994 | L8: 0.001424634065 | M8: 0.001368587655 | N8: 0.001424726927
A9: Urbanização | B9: 0.08015196097 | C9: 0.1035031699 | D9: 0.1023767188 | E9: 0.1013992199 | F9: 0.1514844019 | G9: 0.1491384045 | H9: 0.1469879069 | I9: 0.1191229867 | J9: 0.1176985383 | K9: 0.1161344381 | L9: 0.1646057581 | M9: 0.1617912671 | N9: 0.1594297368
A10: Áreas Não Vegetadas | B10: 0.002095050095 | C10: 0.002001545379 | D10: 0.001992235866 | E10: 0.001973616839 | F10: 0.001470903116 | G10: 0.001470903116 | H10: 0.001470903116 | I10: 0.02001675822 | J10: 0.01752164603 | K10: 0.01608788753 | L10: 0.01959104622 | M10: 0.01708407038 | N10: 0.01568130814
A11: Rios | B11: 0.0003631420165 | C11: 0.0003351424821 | D11: 0.000214118808 | E11: 0.000214118808 | F11: 0.0003351424821 | G11: 0.000214118808 | H11: 0.000214118808 | I11: 0.001238245973 | J11: 0.0005306768457 | K11: 0.0005399869658 | L11: 0.001238407389 | M11: 0.0005306768457 | N11: 0.0005400925607
A12: Soja | B12: 0.03341837685 | C12: 0.03341184356 | D12: 0.03327220086 | E12: 0.03312324865 | F12: 0.03340253405 | G12: 0.03326289135 | H12: 0.03311393913 | I12: 9.310120101e-06 | J12: 9.310120101e-06 | K12: 9.310120101e-06 | L12: 0 | M12: 0 | N12: 0
A13: Lavouras Temporárias | B13: 0.01879027152 | C13: 0.01867488386 | D13: 0.01858178873 | E13: 0.01844214603 | F13: 0.01865626484 | G13: 0.0185631697 | H13: 0.018423527 | I13: 0.05245321665 | J13: 0.05096359743 | K13: 0.04915743413 | L13: 0.05259041305 | M13: 0.05110324923 | N13: 0.04929741407
A14: Café | B14: 0.06361503222 | C14: 0.06363052403 | D14: 0.06336054814 | E14: 0.06300678664 | F14: 0.06357466695 | G14: 0.06330469106 | H14: 0.06295092955 | I14: 0.1529559631 | J14: 0.1503770599 | K14: 0.1474816125 | L14: 0.1525755149 | M14: 0.1506936039 | N14: 0.1470821034
A15: Citrus | B15: 0.008333643711 | C15: 0.008555442807 | D15: 0.008192371785 | E15: 0.007875848329 | F15: 0.008555442807 | G15: 0.008192371785 | H15: 0.007875848329 | I15: 0 | J15: 0 | K15: 0 | L15: 0 | M15: 0 | N15: 0
A16: Lavouras Perenes | B16: 0.01304517859 | C16: 0.01323812804 | D16: 0.01315434242 | E16: 0.01302400924 | F16: 0.01317296145 | G16: 0.01308917583 | H16: 0.01295884264 | I16: 0.0006144679266 | J16: 0.0006144679266 | K16: 0.0006144679266 | L16: 0.0005493686916 | M16: 0.0005492970859 | N16: 0.0005494045014
B17: =SUM(B2:B16) -> 1 | C17: =SUM(C2:C16) -> 1 | D17: =SUM(D2:D16) -> 1 | E17: 1 | F17: 1 | G17: 1 | H17: 1 | I17: =SUM(I2:I16) -> 1 | J17: =SUM(J2:J16) -> 1 | K17: =SUM(K2:K16) -> 1 | L17: 1 | M17: 1 | N17: 1

Sheet CN0
A1: OBJECTID * | B1: NOME | C1: VALUE_3 | D1: VALUE_4 | E1: VALUE_9 | F1: VALUE_11 | G1: VALUE_15 | H1: VALUE_20 | I1: VALUE_21 | J1: VALUE_24 | K1: VALUE_25 | L1: VALUE_33 | M1: VALUE_39 | N1: VALUE_41 | O1: VALUE_46 | P1: VALUE_47 | Q1: VALUE_48 | V1: 3 | W1: VALUE_3 | X1: Formação Florestal | Y1: 42
A2: 1 | B2: sub1 | C2: 133200 | D2: 0 | E2: 0 | F2: 0 | G2: 1331100 | H2: 0 | I2: 1469700 | J2: 0 | K2: 0 | L2: 0 | M2: 900 | N2: 0 | O2: 76500 | P2: 0 | Q2: 0 | V2: 4 | W2: VALUE_4 | X2: Formação Savânica | Y2: 41
A3: 2 | B3: sub2 | C3: 3284100 | D3: 0 | E3: 0 | F3: 0 | G3: 654300 | H3: 0 | I3: 8319600 | J3: 41400 | K3: 41400 | L3: 0 | M3: 1397700 | N3: 649800 | O3: 99900 | P3: 8100 | Q3: 333000 | V3: 9 | W3: VALUE_9 | X3: Silvicultura | Y3: 43
A4: 3 | B4: sub3 | C4: 5611500 | D4: 0 | E4: 116100 | F4: 20700 | G4: 4300200 | H4: 355500 | I4: 17250300 | J4: 3290400 | K4: 137700 | L4: 0 | M4: 1125900 | N4: 389700 | O4: 3096900 | P4: 331200 | Q4: 375300 | V4: =INT(RIGHT(W4,2)) -> 11 | W4: VALUE_11 | X4: Campo Alagado | Y4: 95
A5: 4 | B5: sub4 | C5: 3611700 | D5: 45000 | E5: 118800 | F5: 14400 | G5: 912600 | H5: 11700 | I5: 7602300 | J5: 199800 | K5: 0 | L5: 0 | M5: 621000 | N5: 635400 | O5: 1032300 | P5: 328500 | Q5: 410400 | V5: =INT(RIGHT(W5,2)) -> 15 | W5: VALUE_15 | X5: Pastagem | Y5: 81
A6: 5 | B6: sub5 | C6: 4601700 | D6: 0 | E6: 131400 | F6: 130500 | G6: 5356800 | H6: 0 | I6: 10026900 | J6: 4215600 | K6: 23400 | L6: 35100 | M6: 84600 | N6: 141300 | O6: 1843200 | P6: 137700 | Q6: 142200 | V6: 20 | W6: VALUE_20 | X6: Cana | Y6: 82
V7: 21 | W7: VALUE_21 | X7: Mosaico de Usos | Y7: 71
V8: 24 | W8: VALUE_24 | X8: Urbanização | Y8: 23
V9: 25 | W9: VALUE_25 | X9: Áreas Não Vegetadas | Y9: 31
V10: 33 | W10: VALUE_33 | X10: Rios | Y10: 11
A11: CN1 | V11: 39 | W11: VALUE_39 | X11: Soja | Y11: 82
B12: NOME | C12: Formação Florestal | D12: Formação Savânica | E12: Silvicultura | F12: Campo Alagado | G12: Pastagem | H12: Cana | I12: Mosaico de Usos | J12: Urbanização | K12: Áreas Não Vegetadas | L12: Rios | M12: Soja | N12: Lavouras Temporárias | O12: Café | P12: Citrus | Q12: Lavouras Perenes | V12: 41 | W12: VALUE_41 | X12: Lavouras Temporárias | Y12: 82
B13: sub1 | C13: =C2/10^6 -> 0.1332 | D13: =D2/10^6 -> 0 | E13: 0 | F13: 0 | G13: 1.3311 | H13: 0 | I13: 1.4697 | J13: 0 | K13: 0 | L13: 0 | M13: 0.0009 | N13: 0 | O13: 0.0765 | P13: 0 | Q13: 0 | R13: =SUM(C13:Q13) -> 3.0114 | V13: 46 | W13: VALUE_46 | X13: Café | Y13: 82
B14: sub2 | C14: =C3/10^6 -> 3.2841 | D14: 0 | E14: 0 | F14: 0 | G14: 0.6543 | H14: 0 | I14: 8.3196 | J14: 0.0414 | K14: 0.0414 | L14: 0 | M14: 1.3977 | N14: 0.6498 | O14: 0.0999 | P14: 0.0081 | Q14: 0.333 | R14: =SUM(C14:Q14) -> 14.8293 | V14: 47 | W14: VALUE_47 | X14: Citrus | Y14: 82
B15: sub3 | C15: 5.6115 | D15: 0 | E15: 0.1161 | F15: 0.0207 | G15: 4.3002 | H15: 0.3555 | I15: 17.2503 | J15: 3.2904 | K15: 0.1377 | L15: 0 | M15: 1.1259 | N15: 0.3897 | O15: 3.0969 | P15: 0.3312 | Q15: 0.3753 | R15: 36.4014 | V15: 48 | W15: VALUE_48 | X15: Lavouras Perenes | Y15: 82
B16: sub4 | C16: 3.6117 | D16: 0.045 | E16: 0.1188 | F16: 0.0144 | G16: 0.9126 | H16: 0.0117 | I16: 7.6023 | J16: 0.1998 | K16: 0 | L16: 0 | M16: 0.621 | N16: 0.6354 | O16: 1.0323 | P16: 0.3285 | Q16: 0.4104 | R16: 15.5439
B17: sub5 | C17: 4.6017 | D17: 0 | E17: 0.1314 | F17: 0.1305 | G17: 5.3568 | H17: 0 | I17: 10.0269 | J17: 4.2156 | K17: 0.0234 | L17: 0.0351 | M17: 0.0846 | N17: 0.1413 | O17: 1.8432 | P17: 0.1377 | Q17: 0.1422 | R17: 26.8704
C18: =SUM(C13:C17) -> 17.2422 | D18: =SUM(D13:D17) -> 0.045 | E18: 0.3663 | F18: 0.1656 | G18: 12.555 | H18: 0.3672 | I18: 44.6688 | J18: 7.7472 | K18: 0.2025 | L18: 0.0351 | M18: 3.2301 | N18: 1.8162 | O18: 6.1488 | P18: 0.8055 | Q18: 1.2609 | R18: 96.6564
C19: =C18/$R$18 -> 0.1783865321 | D19: =D18/$R$18 -> 0.0004655666878 | E19: 0.003789712838 | F19: 0.001713285411 | G19: 0.1298931059 | H19: 0.003799024172 | I19: 0.462140117 | J19: 0.08015196097 | K19: 0.002095050095 | L19: 0.0003631420165 | M19: 0.03341837685 | N19: 0.01879027152 | O19: 0.06361503222 | P19: 0.008333643711 | Q19: 0.01304517859 | R19: =SUM(C19:Q19) -> 1
B20: NOME | C20: Formação Florestal | D20: Formação Savânica | E20: Silvicultura | F20: Campo Alagado | G20: Pastagem | H20: Cana | I20: Mosaico de Usos | J20: Urbanização | K20: Áreas Não Vegetadas | L20: Rios | M20: Soja | N20: Lavouras Temporárias | O20: Café | P20: Citrus | Q20: Lavouras Perenes
B21: sub1 | C21: =(C13/$R13) -> 0.04423191871 | D21: =(D13/$R13) -> 0 | E21: 0 | F21: 0 | G21: 0.4420203228 | H21: 0 | I21: 0.4880454274 | J21: 0 | K21: 0 | L21: 0 | M21: 0.0002988643156 | N21: 0 | O21: 0.02540346683 | P21: 0 | Q21: 0 | R21: =SUM(C21:Q21) -> 1
B22: sub2 | C22: =(C14/$R14) -> 0.2214602173 | D22: 0 | E22: 0 | F22: 0 | G22: 0.04412210961 | H22: 0 | I22: 0.5610244583 | J22: 0.002791770347 | K22: 0.002791770347 | L22: 0 | M22: 0.09425259453 | N22: 0.04381865631 | O22: 0.006736663228 | P22: 0.0005462159374 | Q22: 0.02245554409 | R22: =SUM(C22:Q22) -> 1
B23: sub3 | C23: 0.1541561588 | D23: 0 | E23: 0.003189437769 | F23: 0.0005686594472 | G23: 0.1181328191 | H23: 0.009766107897 | I23: 0.4738911141 | J23: 0.09039212778 | K23: 0.00378282154 | L23: 0 | M23: 0.03093012906 | N23: 0.0107056322 | O23: 0.08507639816 | P23: 0.009098551155 | Q23: 0.01031004302 | R23: 1
B24: sub4 | C24: 0.2323548144 | D24: 0.002895026345 | E24: 0.00764286955 | F24: 0.0009264084303 | G24: 0.05871113427 | H24: 0.0007527068496 | I24: 0.4890857507 | J24: 0.01285391697 | K24: 0 | L24: 0 | M24: 0.03995136356 | N24: 0.04087777199 | O24: 0.06641190435 | P24: 0.02113369232 | Q24: 0.02640264026 | R24: 1
B25: sub5 | C25: 0.1712553591 | D25: 0 | E25: 0.004890139335 | F25: 0.00485664523 | G25: 0.1993569132 | H25: 0 | I25: 0.3731578242 | J25: 0.156886388 | K25: 0.000870846731 | L25: 0.001306270096 | M25: 0.003148445874 | N25: 0.005258574491 | O25: 0.06859592712 | P25: 0.005124598071 | Q25: 0.005292068596 | R25: 1
B29: Classe | C29: sub1 | D29: sub2 | E29: sub3 | F29: sub4 | G29: sub5 | H29: sub24
B30: Formação Florestal | C30: 0.04423191871 | D30: 0.2214602173 | E30: 0.1541561588 | F30: 0.2323548144 | G30: 0.1712553591 | H30: 0.1783865321
B31: Formação Savânica | C31: 0 | D31: 0 | E31: 0 | F31: 0.002895026345 | G31: 0 | H31: 0.0004655666878
B32: Silvicultura | C32: 0 | D32: 0 | E32: 0.003189437769 | F32: 0.00764286955 | G32: 0.004890139335 | H32: 0.003789712838
B33: Campo Alagado | C33: 0 | D33: 0 | E33: 0.0005686594472 | F33: 0.0009264084303 | G33: 0.00485664523 | H33: 0.001713285411
B34: Pastagem | C34: 0.4420203228 | D34: 0.04412210961 | E34: 0.1181328191 | F34: 0.05871113427 | G34: 0.1993569132 | H34: 0.1298931059
B35: Cana | C35: 0 | D35: 0 | E35: 0.009766107897 | F35: 0.0007527068496 | G35: 0 | H35: 0.003799024172
B36: Mosaico de Usos | C36: 0.4880454274 | D36: 0.5610244583 | E36: 0.4738911141 | F36: 0.4890857507 | G36: 0.3731578242 | H36: 0.462140117
B37: Urbanização | C37: 0 | D37: 0.002791770347 | E37: 0.09039212778 | F37: 0.01285391697 | G37: 0.156886388 | H37: 0.08015196097
B38: Áreas Não Vegetadas | C38: 0 | D38: 0.002791770347 | E38: 0.00378282154 | F38: 0 | G38: 0.000870846731 | H38: 0.002095050095
B39: Rios | C39: 0 | D39: 0 | E39: 0 | F39: 0 | G39: 0.001306270096 | H39: 0.0003631420165
B40: Soja | C40: 0.0002988643156 | D40: 0.09425259453 | E40: 0.03093012906 | F40: 0.03995136356 | G40: 0.003148445874 | H40: 0.03341837685
B41: Lavouras Temporárias | C41: 0 | D41: 0.04381865631 | E41: 0.0107056322 | F41: 0.04087777199 | G41: 0.005258574491 | H41: 0.01879027152
B42: Café | C42: 0.02540346683 | D42: 0.006736663228 | E42: 0.08507639816 | F42: 0.06641190435 | G42: 0.06859592712 | H42: 0.06361503222
B43: Citrus | C43: 0 | D43: 0.0005462159374 | E43: 0.009098551155 | F43: 0.02113369232 | G43: 0.005124598071 | H43: 0.008333643711
B44: Lavouras Perenes | C44: 0 | D44: 0.02245554409 | E44: 0.01031004302 | F44: 0.02640264026 | G44: 0.005292068596 | H44: 0.01304517859
C45: 100 | D45: 100 | E45: 100 | F45: 100 | G45: 100

Sheet CN1
A1: OBJECTID * | B1: NOME | C1: VALUE_3 | D1: VALUE_4 | E1: VALUE_9 | F1: VALUE_11 | G1: VALUE_15 | H1: VALUE_20 | I1: VALUE_21 | J1: VALUE_24 | K1: VALUE_25 | L1: VALUE_33 | M1: VALUE_39 | N1: VALUE_41 | O1: VALUE_46 | P1: VALUE_47 | Q1: VALUE_48
A2: 1 | B2: sub1 | C2: 137700 | D2: 0 | E2: 0 | F2: 0 | G2: 1334700 | H2: 0 | I2: 1427400 | J2: 35100 | K2: 0 | L2: 0 | M2: 1800 | N2: 0 | O2: 77400 | P2: 0 | Q2: 0
A3: 2 | B3: sub2 | C3: 3303000 | D3: 0 | E3: 0 | F3: 0 | G3: 657900 | H3: 0 | I3: 7754400 | J3: 565200 | K3: 43200 | L3: 0 | M3: 1435500 | N3: 642600 | O3: 99000 | P3: 9900 | Q3: 333000
A4: 3 | B4: sub3 | C4: 5658300 | D4: 0 | E4: 120600 | F4: 19800 | G4: 4289400 | H4: 352800 | I4: 16513200 | J4: 3999600 | K4: 126900 | L4: 0 | M4: 1111500 | N4: 383400 | O4: 3112200 | P4: 342000 | Q4: 378000
A5: 4 | B5: sub4 | C5: 3621600 | D5: 43200 | E5: 126900 | F5: 14400 | G5: 922500 | H5: 13500 | I5: 7438500 | J5: 396000 | K5: 0 | L5: 0 | M5: 603000 | N5: 642600 | O5: 1008000 | P5: 330300 | Q5: 423000
A6: 5 | B6: sub5 | C6: 4589100 | D6: 0 | E6: 118800 | F6: 122400 | G6: 5284800 | H6: 0 | I6: 9284400 | J6: 5010300 | K6: 23400 | L6: 32400 | M6: 78300 | N6: 136800 | O6: 1854900 | P6: 144900 | Q6: 145800
A11: CN1
B12: NOME | C12: Formação Florestal | D12: Formação Savânica | E12: Silvicultura | F12: Campo Alagado | G12: Pastagem | H12: Cana | I12: Mosaico de Usos | J12: Urbanização | K12: Áreas Não Vegetadas | L12: Rios | M12: Soja | N12: Lavouras Temporárias | O12: Café | P12: Citrus | Q12: Lavouras Perenes
B13: sub1 | C13: =C2/10^6 -> 0.1377 | D13: =D2/10^6 -> 0 | E13: 0 | F13: 0 | G13: 1.3347 | H13: 0 | I13: 1.4274 | J13: 0.0351 | K13: 0 | L13: 0 | M13: 0.0018 | N13: 0 | O13: 0.0774 | P13: 0 | Q13: 0 | R13: =SUM(C13:Q13) -> 3.0141
B14: sub2 | C14: =C3/10^6 -> 3.303 | D14: 0 | E14: 0 | F14: 0 | G14: 0.6579 | H14: 0 | I14: 7.7544 | J14: 0.5652 | K14: 0.0432 | L14: 0 | M14: 1.4355 | N14: 0.6426 | O14: 0.099 | P14: 0.0099 | Q14: 0.333 | R14: =SUM(C14:Q14) -> 14.8437
B15: sub3 | C15: =C4/10^6 -> 5.6583 | D15: 0 | E15: 0.1206 | F15: 0.0198 | G15: 4.2894 | H15: 0.3528 | I15: 16.5132 | J15: 3.9996 | K15: 0.1269 | L15: 0 | M15: 1.1115 | N15: 0.3834 | O15: 3.1122 | P15: 0.342 | Q15: 0.378 | R15: 36.4077
B16: sub4 | C16: =C5/10^6 -> 3.6216 | D16: 0.0432 | E16: 0.1269 | F16: 0.0144 | G16: 0.9225 | H16: 0.0135 | I16: 7.4385 | J16: 0.396 | K16: 0 | L16: 0 | M16: 0.603 | N16: 0.6426 | O16: 1.008 | P16: 0.3303 | Q16: 0.423 | R16: 15.5835
B17: sub5 | C17: =C6/10^6 -> 4.5891 | D17: 0 | E17: 0.1188 | F17: 0.1224 | G17: 5.2848 | H17: 0 | I17: 9.2844 | J17: 5.0103 | K17: 0.0234 | L17: 0.0324 | M17: 0.0783 | N17: 0.1368 | O17: 1.8549 | P17: 0.1449 | Q17: 0.1458 | R17: 26.8263
C18: =SUM(C13:C17) -> 17.3097 | D18: =SUM(D13:D17) -> 0.0432 | E18: 0.3663 | F18: 0.1566 | G18: 12.4893 | H18: 0.3663 | I18: 42.4179 | J18: 10.0062 | K18: 0.1935 | L18: 0.0324 | M18: 3.2301 | N18: 1.8054 | O18: 6.1515 | P18: 0.8271 | Q18: 1.2798 | R18: 96.6753
C19: =C18/$R$18 -> 0.1790498711 | D19: =D18/$R$18 -> 0.0004468566428 | E19: 0.00378897195 | F19: 0.00161985533 | G19: 0.1291881173 | H19: 0.00378897195 | I19: 0.4387666757 | J19: 0.1035031699 | K19: 0.002001545379 | L19: 0.0003351424821 | M19: 0.03341184356 | N19: 0.01867488386 | O19: 0.06363052403 | P19: 0.008555442807 | Q19: 0.01323812804 | R19: =SUM(C19:Q19) -> 1
B20: NOME | C20: Formação Florestal | D20: Formação Savânica | E20: Silvicultura | F20: Campo Alagado | G20: Pastagem | H20: Cana | I20: Mosaico de Usos | J20: Urbanização | K20: Áreas Não Vegetadas | L20: Rios | M20: Soja | N20: Lavouras Temporárias | O20: Café | P20: Citrus | Q20: Lavouras Perenes
B21: sub1 | C21: =(C13/$R13) -> 0.04568527919 | D21: =(D13/$R13) -> 0 | E21: 0 | F21: 0 | G21: 0.4428187519 | H21: 0 | I21: 0.4735742013 | J21: 0.01164526724 | K21: 0 | L21: 0 | M21: 0.000597193192 | N21: 0 | O21: 0.02567930726 | P21: 0 | Q21: 0 | R21: =SUM(C21:Q21) -> 1
B22: sub2 | C22: =(C14/$R14) -> 0.2225186443 | D22: 0 | E22: 0 | F22: 0 | G22: 0.04432183351 | H22: 0 | I22: 0.5224034439 | J22: 0.03807675984 | K22: 0.002910325593 | L22: 0 | M22: 0.09670769417 | N22: 0.04329109319 | O22: 0.00666949615 | P22: 0.000666949615 | Q22: 0.02243375978 | R22: =SUM(C22:Q22) -> 1
B23: sub3 | C23: =(C15/$R15) -> 0.155414926 | D23: 0 | E23: 0.003312486095 | F23: 0.0005438410007 | G23: 0.1178157368 | H23: 0.00969025783 | I23: 0.4535633946 | J23: 0.1098558821 | K23: 0.003485526413 | L23: 0 | M23: 0.03052925617 | N23: 0.01053073938 | O23: 0.08548191729 | P23: 0.009393617284 | Q23: 0.0103824191 | R23: 1
B24: sub4 | C24: =(C16/$R16) -> 0.2323996535 | D24: 0.002772162865 | E24: 0.008143228415 | F24: 0.0009240542882 | G24: 0.05919722784 | H24: 0.0008663008952 | I24: 0.4773317932 | J24: 0.02541149293 | K24: 0 | L24: 0 | M24: 0.03869477332 | N24: 0.04123592261 | O24: 0.06468380017 | P24: 0.02119549524 | Q24: 0.02714409472 | R24: 1
B25: sub5 | C25: =(C17/$R17) -> 0.171067199 | D25: 0 | E25: 0.004428489952 | F25: 0.004562686617 | G25: 0.1970007045 | H25: 0 | I25: 0.3460931996 | J25: 0.1867682088 | K25: 0.0008722783239 | L25: 0.001207769987 | M25: 0.002918777468 | N25: 0.005099473278 | O25: 0.06914483175 | P25: 0.005401415775 | Q25: 0.005434964941 | R25: 1
B29: Classe | C29: sub1 | D29: sub2 | E29: sub3 | F29: sub4 | G29: sub5 | H29: sub24
B30: Formação Florestal | C30: 0.04568527919 | D30: 0.2225186443 | E30: 0.155414926 | F30: 0.2323996535 | G30: 0.171067199 | H30: 0.1790498711
B31: Formação Savânica | C31: 0 | D31: 0 | E31: 0 | F31: 0.002772162865 | G31: 0 | H31: 0.0004468566428
B32: Silvicultura | C32: 0 | D32: 0 | E32: 0.003312486095 | F32: 0.008143228415 | G32: 0.004428489952 | H32: 0.00378897195
B33: Campo Alagado | C33: 0 | D33: 0 | E33: 0.0005438410007 | F33: 0.0009240542882 | G33: 0.004562686617 | H33: 0.00161985533
B34: Pastagem | C34: 0.4428187519 | D34: 0.04432183351 | E34: 0.1178157368 | F34: 0.05919722784 | G34: 0.1970007045 | H34: 0.1291881173
B35: Cana | C35: 0 | D35: 0 | E35: 0.00969025783 | F35: 0.0008663008952 | G35: 0 | H35: 0.00378897195
B36: Mosaico de Usos | C36: 0.4735742013 | D36: 0.5224034439 | E36: 0.4535633946 | F36: 0.4773317932 | G36: 0.3460931996 | H36: 0.4387666757
B37: Urbanização | C37: 0.01164526724 | D37: 0.03807675984 | E37: 0.1098558821 | F37: 0.02541149293 | G37: 0.1867682088 | H37: 0.1035031699
B38: Áreas Não Vegetadas | C38: 0 | D38: 0.002910325593 | E38: 0.003485526413 | F38: 0 | G38: 0.0008722783239 | H38: 0.002001545379
B39: Rios | C39: 0 | D39: 0 | E39: 0 | F39: 0 | G39: 0.001207769987 | H39: 0.0003351424821
B40: Soja | C40: 0.000597193192 | D40: 0.09670769417 | E40: 0.03052925617 | F40: 0.03869477332 | G40: 0.002918777468 | H40: 0.03341184356
B41: Lavouras Temporárias | C41: 0 | D41: 0.04329109319 | E41: 0.01053073938 | F41: 0.04123592261 | G41: 0.005099473278 | H41: 0.01867488386
B42: Café | C42: 0.02567930726 | D42: 0.00666949615 | E42: 0.08548191729 | F42: 0.06468380017 | G42: 0.06914483175 | H42: 0.06363052403
B43: Citrus | C43: 0 | D43: 0.000666949615 | E43: 0.009393617284 | F43: 0.02119549524 | G43: 0.005401415775 | H43: 0.008555442807
B44: Lavouras Perenes | C44: 0 | D44: 0.02243375978 | E44: 0.0103824191 | F44: 0.02714409472 | G44: 0.005434964941 | H44: 0.01323812804
C45: 100 | D45: 100 | E45: 100 | F45: 100 | G45: 100

Sheet CN2
A1: OBJECTID * | B1: NOME | C1: VALUE_3 | D1: VALUE_4 | E1: VALUE_9 | F1: VALUE_11 | G1: VALUE_15 | H1: VALUE_20 | I1: VALUE_21 | J1: VALUE_24 | K1: VALUE_25 | L1: VALUE_33 | M1: VALUE_39 | N1: VALUE_41 | O1: VALUE_46 | P1: VALUE_47 | Q1: VALUE_48
A2: 1 | B2: sub1 | C2: 432900 | D2: 0 | E2: 0 | F2: 0 | G2: 1313100 | H2: 0 | I2: 1154700 | J2: 35100 | K2: 0 | L2: 0 | M2: 900 | N2: 0 | O2: 77400 | P2: 0 | Q2: 0
A3: 2 | B3: sub2 | C3: 4070700 | D3: 0 | E3: 0 | F3: 0 | G3: 656100 | H3: 0 | I3: 7014600 | J3: 547200 | K3: 43200 | L3: 0 | M3: 1431000 | N3: 639900 | O3: 99000 | P3: 9900 | Q3: 332100
A4: 3 | B4: sub3 | C4: 7633800 | D4: 0 | E4: 120600 | F4: 13500 | G4: 4179600 | H4: 350100 | I4: 14722200 | J4: 3992400 | K4: 126900 | L4: 0 | M4: 1111500 | N4: 379800 | O4: 3089700 | P4: 312300 | Q4: 375300
A5: 4 | B5: sub4 | C5: 3989700 | D5: 43200 | E5: 126900 | F5: 7200 | G5: 916200 | H5: 13500 | I5: 7097400 | J5: 395100 | K5: 0 | L5: 0 | M5: 594900 | N5: 639900 | O5: 1007100 | P5: 329400 | Q5: 423000
A6: 5 | B6: sub5 | C6: 5752800 | D6: 0 | E6: 118800 | F6: 109800 | G6: 5185800 | H6: 0 | I6: 8339400 | J6: 4927500 | K6: 22500 | L6: 20700 | M6: 78300 | N6: 136800 | O6: 1852200 | P6: 140400 | Q6: 141300
A8: CN1
B9: NOME | C9: Formação Florestal | D9: Formação Savânica | E9: Silvicultura | F9: Campos Alagados | G9: Pastagem | H9: Cana | I9: Mosaico de Usos | J9: Urbanização | K9: Áreas Não Vegetadas | L9: Rios | M9: Soja | N9: Lavouras Temporárias | O9: Café | P9: Citrus | Q9: Lavouras Perenes
B10: sub1 | C10: =C2/10^6 -> 0.4329 | D10: =D2/10^6 -> 0 | E10: 0 | F10: 0 | G10: 1.3131 | H10: 0 | I10: 1.1547 | J10: 0.0351 | K10: 0 | L10: 0 | M10: 0.0009 | N10: 0 | O10: 0.0774 | P10: 0 | Q10: 0 | T10: =SUM(C10:Q10) -> 3.0141
B11: sub2 | C11: =C3/10^6 -> 4.0707 | D11: 0 | E11: 0 | F11: 0 | G11: 0.6561 | H11: 0 | I11: 7.0146 | J11: 0.5472 | K11: 0.0432 | L11: 0 | M11: 1.431 | N11: 0.6399 | O11: 0.099 | P11: 0.0099 | Q11: 0.3321 | T11: =SUM(C11:Q11) -> 14.8437
B12: sub3 | C12: 7.6338 | D12: 0 | E12: 0.1206 | F12: 0.0135 | G12: 4.1796 | H12: 0.3501 | I12: 14.7222 | J12: 3.9924 | K12: 0.1269 | L12: 0 | M12: 1.1115 | N12: 0.3798 | O12: 3.0897 | P12: 0.3123 | Q12: 0.3753 | T12: 36.4077
B13: sub4 | C13: 3.9897 | D13: 0.0432 | E13: 0.1269 | F13: 0.0072 | G13: 0.9162 | H13: 0.0135 | I13: 7.0974 | J13: 0.3951 | K13: 0 | L13: 0 | M13: 0.5949 | N13: 0.6399 | O13: 1.0071 | P13: 0.3294 | Q13: 0.423 | T13: 15.5835
B14: sub5 | C14: 5.7528 | D14: 0 | E14: 0.1188 | F14: 0.1098 | G14: 5.1858 | H14: 0 | I14: 8.3394 | J14: 4.9275 | K14: 0.0225 | L14: 0.0207 | M14: 0.0783 | N14: 0.1368 | O14: 1.8522 | P14: 0.1404 | Q14: 0.1413 | T14: 26.8263
C15: =SUM(C10:C14) -> 21.8799 | D15: =SUM(D10:D14) -> 0.0432 | E15: =SUM(E10:E14) -> 0.3663 | F15: 0.1305 | G15: 12.2508 | H15: 0.3636 | I15: 38.3283 | J15: 9.8973 | K15: 0.1926 | L15: 0.0207 | M15: 3.2166 | N15: 1.7964 | O15: 6.1254 | P15: 0.792 | Q15: =SUM(Q10:Q14) -> 1.2717 | T15: =SUM(T10:T14) -> 96.6753
C16: =C15/$T$15 -> 0.2263235801 | D16: 0.0004468566428 | E16: 0.00378897195 | F16: 0.001349879442 | G16: 0.1267210963 | H16: 0.00376104341 | I16: 0.3964642468 | J16: 0.1023767188 | K16: 0.001992235866 | L16: 0.000214118808 | M16: 0.03327220086 | N16: 0.01858178873 | O16: 0.06336054814 | P16: 0.008192371785 | Q16: 0.01315434242 | R16: =SUM(C16:Q16) -> 1
B19: NOME | C19: Formação Florestal | E19: Silvicultura | F19: Campos Alagados | G19: Pastagem | H19: Cana | I19: Mosaico de Usos | J19: Urbanização | K19: Áreas Não Vegetadas | L19: Rios | M19: Soja | N19: Lavouras Temporárias | O19: Café | Q19: Lavouras Perenes
B20: sub1 | C20: =(C10/$T10) -> 0.1436249627 | D20: 0 | E20: 0 | F20: 0 | G20: 0.4356524336 | H20: 0 | I20: 0.3830994327 | J20: 0.01164526724 | K20: 0 | L20: 0 | M20: 0.000298596596 | N20: 0 | O20: 0.02567930726 | P20: 0 | Q20: 0 | T20: =SUM(C20:S20) -> 1
B21: sub2 | C21: =(C11/$T11) -> 0.2742375553 | D21: =(D11/$T11) -> 0 | E21: =(E11/$T11) -> 0 | F21: 0 | G21: 0.04420056994 | H21: 0 | I21: 0.4725641181 | J21: 0.03686412417 | K21: 0.002910325593 | L21: 0 | M21: 0.09640453526 | N21: 0.04310919784 | O21: 0.00666949615 | P21: =(P11/$T11) -> 0.000666949615 | Q21: =(Q11/$T11) -> 0.02237312799 | T21: =SUM(C21:S21) -> 1
B22: sub3 | C22: =(C12/$T12) -> 0.2096754258 | D22: 0 | E22: =(E12/$T12) -> 0.003312486095 | F22: 0.0003708006823 | G22: 0.1147998912 | H22: 0.009616097694 | I22: 0.404370504 | J22: 0.1096581218 | K22: 0.003485526413 | L22: 0 | M22: 0.03052925617 | N22: 0.01043185919 | O22: 0.08486391615 | P22: 0.008577855783 | Q22: =(Q12/$T12) -> 0.01030825897 | T22: =SUM(C22:S22) -> 1
B23: sub4 | C23: =(C13/$T13) -> 0.2560207912 | D23: 0.002772162865 | E23: =(E13/$T13) -> 0.008143228415 | F23: 0.0004620271441 | G23: 0.05879295409 | H23: 0.0008663008952 | I23: 0.4554432573 | J23: 0.02535373953 | K23: 0 | L23: 0 | M23: 0.03817499278 | N23: 0.04106266243 | O23: 0.06462604678 | P23: 0.02113774184 | Q23: =(Q13/$T13) -> 0.02714409472 | T23: =SUM(C23:S23) -> 1
B24: sub5 | C24: =(C14/$T14) -> 0.214446271 | D24: 0 | E24: =(E14/$T14) -> 0.004428489952 | F24: 0.004092998289 | G24: 0.1933102962 | H24: 0 | I24: 0.310866575 | J24: 0.1836816855 | K24: 0.0008387291576 | L24: 0.000771630825 | M24: 0.002918777468 | N24: 0.005099473278 | O24: 0.06904418425 | P24: 0.005233669943 | Q24: =(Q14/$T14) -> 0.00526721911 | T24: =SUM(C24:S24) -> 1
B28: Classe | C28: sub1 | D28: sub2 | E28: sub3 | F28: sub4 | G28: sub5 | H28: sub24
B29: Formação Florestal | C29: 0.1436249627 | D29: 0.2742375553 | E29: 0.2096754258 | F29: 0.2560207912 | G29: 0.214446271 | H29: 0.2263235801
B30: Formação Savânica | C30: 0 | D30: 0 | E30: 0 | F30: 0.002772162865 | G30: 0 | H30: 0.0004468566428
B31: Silvicultura | C31: 0 | D31: 0 | E31: 0.003312486095 | F31: 0.008143228415 | G31: 0.004428489952 | H31: 0.00378897195
B32: Campos Alagados | C32: 0 | D32: 0 | E32: 0.0003708006823 | F32: 0.0004620271441 | G32: 0.004092998289 | H32: 0.001349879442
B33: Pastagem | C33: 0.4356524336 | D33: 0.04420056994 | E33: 0.1147998912 | F33: 0.05879295409 | G33: 0.1933102962 | H33: 0.1267210963
B34: Cana | C34: 0 | D34: 0 | E34: 0.009616097694 | F34: 0.0008663008952 | G34: 0 | H34: 0.00376104341
B35: Mosaico de Usos | C35: 0.3830994327 | D35: 0.4725641181 | E35: 0.404370504 | F35: 0.4554432573 | G35: 0.310866575 | H35: 0.3964642468
B36: Urbanização | C36: 0.01164526724 | D36: 0.03686412417 | E36: 0.1096581218 | F36: 0.02535373953 | G36: 0.1836816855 | H36: 0.1023767188
B37: Áreas Não Vegetadas | C37: 0 | D37: 0.002910325593 | E37: 0.003485526413 | F37: 0 | G37: 0.0008387291576 | H37: 0.001992235866
B38: Rios | C38: 0 | D38: 0 | E38: 0 | F38: 0 | G38: 0.000771630825 | H38: 0.000214118808
B39: Soja | C39: 0.000298596596 | D39: 0.09640453526 | E39: 0.03052925617 | F39: 0.03817499278 | G39: 0.002918777468 | H39: 0.03327220086
B40: Lavouras Temporárias | C40: 0 | D40: 0.04310919784 | E40: 0.01043185919 | F40: 0.04106266243 | G40: 0.005099473278 | H40: 0.01858178873
B41: Café | C41: 0.02567930726 | D41: 0.00666949615 | E41: 0.08486391615 | F41: 0.06462604678 | G41: 0.06904418425 | H41: 0.06336054814
B42: Citrus | C42: 0 | D42: 0.000666949615 | E42: 0.008577855783 | F42: 0.02113774184 | G42: 0.005233669943 | H42: 0.008192371785
B43: Lavouras Perenes | C43: 0 | D43: 0.02237312799 | E43: 0.01030825897 | F43: 0.02714409472 | G43: 0.00526721911 | H43: 0.01315434242
C44: =SUM(C29:C43) -> 1 | D44: =SUM(D29:D43) -> 1 | E44: 1 | F44: 1 | G44: 1 | H44: 1

Sheet CN3
A1: OBJECTID * | B1: NOME | C1: VALUE_3 | D1: VALUE_4 | E1: VALUE_9 | F1: VALUE_11 | G1: VALUE_15 | H1: VALUE_20 | I1: VALUE_21 | J1: VALUE_24 | K1: VALUE_25 | L1: VALUE_33 | M1: VALUE_39 | N1: VALUE_41 | O1: VALUE_46 | P1: VALUE_47 | Q1: VALUE_48
A2: 1 | B2: sub1 | C2: 603900 | D2: 0 | E2: 0 | F2: 0 | G2: 1268100 | H2: 0 | I2: 1028700 | J2: 35100 | K2: 0 | L2: 0 | M2: 900 | N2: 0 | O2: 77400 | P2: 0 | Q2: 0
A3: 2 | B3: sub2 | C3: 4590900 | D3: 0 | E3: 0 | F3: 0 | G3: 647100 | H3: 0 | I3: 6541200 | J3: 524700 | K3: 43200 | L3: 0 | M3: 1422000 | N3: 632700 | O3: 99000 | P3: 9900 | Q3: 333000
A4: 3 | B4: sub3 | C4: 8790300 | D4: 0 | E4: 117000 | F4: 14400 | G4: 4032000 | H4: 347400 | I4: 13797000 | J4: 3996000 | K4: 126900 | L4: 0 | M4: 1106100 | N4: 374400 | O4: 3055500 | P4: 284400 | Q4: 366300
A5: 4 | B5: sub4 | C5: 4237200 | D5: 43200 | E5: 121500 | F5: 2700 | G5: 898200 | H5: 10800 | I5: 6883200 | J5: 395100 | K5: 0 | L5: 0 | M5: 594900 | N5: 639000 | O5: 1006200 | P5: 328500 | Q5: 423000
A6: 5 | B6: sub5 | C6: 6471000 | D6: 0 | E6: 118800 | F6: 104400 | G6: 5048100 | H6: 0 | I6: 7847100 | J6: 4851900 | K6: 20700 | L6: 20700 | M6: 78300 | N6: 136800 | O6: 1853100 | P6: 138600 | Q6: 136800
A8: CN1
B9: NOME | C9: Formação Florestal | D9: Formação Savânica | E9: Silvicultura | F9: Campos Alagados | G9: Pastagem | H9: Cana | I9: Mosaico de Usos | J9: Urbanização | K9: Áreas Não Vegetadas | L9: Rios | M9: Soja | N9: Lavouras Temporárias | O9: Café | P9: Citrus | Q9: Lavouras Perenes
B10: sub1 | C10: =C2/10^6 -> 0.6039 | D10: =D2/10^6 -> 0 | E10: 0 | F10: 0 | G10: 1.2681 | H10: 0 | I10: 1.0287 | J10: 0.0351 | K10: 0 | L10: 0 | M10: 0.0009 | N10: 0 | O10: 0.0774 | P10: 0 | Q10: 0 | T10: =SUM(C10:Q10) -> 3.0141
B11: sub2 | C11: =C3/10^6 -> 4.5909 | D11: 0 | E11: 0 | F11: 0 | G11: 0.6471 | H11: 0 | I11: 6.5412 | J11: 0.5247 | K11: 0.0432 | L11: 0 | M11: 1.422 | N11: 0.6327 | O11: 0.099 | P11: 0.0099 | Q11: 0.333 | T11: =SUM(C11:Q11) -> 14.8437
B12: sub3 | C12: 8.7903 | D12: 0 | E12: 0.117 | F12: 0.0144 | G12: 4.032 | H12: 0.3474 | I12: 13.797 | J12: 3.996 | K12: 0.1269 | L12: 0 | M12: 1.1061 | N12: 0.3744 | O12: 3.0555 | P12: 0.2844 | Q12: 0.3663 | T12: 36.4077
B13: sub4 | C13: 4.2372 | D13: 0.0432 | E13: 0.1215 | F13: 0.0027 | G13: 0.8982 | H13: 0.0108 | I13: 6.8832 | J13: 0.3951 | K13: 0 | L13: 0 | M13: 0.5949 | N13: 0.639 | O13: 1.0062 | P13: 0.3285 | Q13: 0.423 | T13: 15.5835
B14: sub5 | C14: 6.471 | D14: 0 | E14: 0.1188 | F14: 0.1044 | G14: 5.0481 | H14: 0 | I14: 7.8471 | J14: 4.8519 | K14: 0.0207 | L14: 0.0207 | M14: 0.0783 | N14: 0.1368 | O14: 1.8531 | P14: 0.1386 | Q14: 0.1368 | T14: 26.8263
C15: =SUM(C10:C14) -> 24.6933 | D15: =SUM(D10:D14) -> 0.0432 | E15: =SUM(E10:E14) -> 0.3573 | F15: 0.1215 | G15: 11.8935 | H15: 0.3582 | I15: 36.0972 | J15: 9.8028 | K15: 0.1908 | L15: 0.0207 | M15: 3.2022 | N15: 1.7829 | O15: 6.0912 | P15: 0.7614 | Q15: =SUM(Q10:Q14) -> 1.2591 | T15: =SUM(T10:T14) -> 96.6753
C16: =C15/$T$15 -> 0.2554251189 | D16: 0.0004468566428 | E16: 0.003695876817 | F16: 0.001256784308 | G16: 0.1230252195 | H16: 0.00370518633 | I16: 0.3733859631 | J16: 0.1013992199 | K16: 0.001973616839 | L16: 0.000214118808 | M16: 0.03312324865 | N16: 0.01844214603 | O16: 0.06300678664 | P16: 0.007875848329 | Q16: 0.01302400924 | R16: =SUM(C16:Q16) -> 1
B19: NOME | C19: Formação Florestal | E19: Silvicultura | F19: Campos Alagados | G19: Pastagem | H19: Cana | I19: Mosaico de Usos | J19: Urbanização | K19: Áreas Não Vegetadas | L19: Rios | M19: Soja | N19: Lavouras Temporárias | O19: Café | Q19: Lavouras Perenes
B20: sub1 | C20: =(C10/$T10) -> 0.2003583159 | D20: 0 | E20: 0 | F20: 0 | G20: 0.4207226038 | H20: 0 | I20: 0.3412959092 | J20: 0.01164526724 | K20: 0 | L20: 0 | M20: 0.000298596596 | N20: 0 | O20: 0.02567930726 | P20: 0 | Q20: 0 | T20: =SUM(C20:S20) -> 1
B21: sub2 | C21: =(C11/$T11) -> 0.309282726 | D21: =(D11/$T11) -> 0 | E21: =(E11/$T11) -> 0 | F21: 0 | G21: 0.04359425211 | H21: 0 | I21: 0.4406718002 | J21: 0.03534832959 | K21: 0.002910325593 | L21: 0 | M21: 0.09579821743 | N21: 0.04262414358 | O21: 0.00666949615 | P21: =(P11/$T11) -> 0.000666949615 | Q21: =(Q11/$T11) -> 0.02243375978 | T21: =SUM(C21:S21) -> 1
B22: sub3 | C22: =(C12/$T12) -> 0.2414406843 | D22: 0 | E22: =(E12/$T12) -> 0.003213605913 | F22: 0.0003955207278 | G22: 0.1107458038 | H22: 0.009541937557 | I22: 0.3789582973 | J22: 0.109757002 | K22: 0.003485526413 | L22: 0 | M22: 0.0303809359 | N22: 0.01028353892 | O22: 0.08392455442 | P22: 0.007811534373 | Q22: =(Q12/$T12) -> 0.01006105851 | T22: =SUM(C22:S22) -> 1
B23: sub4 | C23: =(C13/$T13) -> 0.2719029743 | D23: 0.002772162865 | E23: =(E13/$T13) -> 0.007796708057 | F23: 0.000173260179 | G23: 0.05763788623 | H23: 0.0006930407161 | I23: 0.4416979498 | J23: 0.02535373953 | K23: 0 | L23: 0 | M23: 0.03817499278 | N23: 0.04100490904 | O23: 0.06456829339 | P23: 0.02107998845 | Q23: =(Q13/$T13) -> 0.02714409472 | T23: =SUM(C23:S23) -> 1
B24: sub5 | C24: =(C14/$T14) -> 0.2412185057 | D24: 0 | E24: =(E14/$T14) -> 0.004428489952 | F24: 0.003891703291 | G24: 0.1881772738 | H24: 0 | I24: 0.292515181 | J24: 0.1808635555 | K24: 0.000771630825 | L24: 0.000771630825 | M24: 0.002918777468 | N24: 0.005099473278 | O24: 0.06907773342 | P24: 0.005166571611 | Q24: =(Q14/$T14) -> 0.005099473278 | T24: =SUM(C24:S24) -> 1
B28: Classe | C28: sub1 | D28: sub2 | E28: sub3 | F28: sub4 | G28: sub5 | H28: sub24
B29: Formação Florestal | C29: 0.2003583159 | D29: 0.309282726 | E29: 0.2414406843 | F29: 0.2719029743 | G29: 0.2412185057 | H29: 0.2554251189
B30: Formação Savânica | C30: 0 | D30: 0 | E30: 0 | F30: 0.002772162865 | G30: 0 | H30: 0.0004468566428
B31: Silvicultura | C31: 0 | D31: 0 | E31: 0.003213605913 | F31: 0.007796708057 | G31: 0.004428489952 | H31: 0.003695876817
B32: Campos Alagados | C32: 0 | D32: 0 | E32: 0.0003955207278 | F32: 0.000173260179 | G32: 0.003891703291 | H32: 0.001256784308
B33: Pastagem | C33: 0.4207226038 | D33: 0.04359425211 | E33: 0.1107458038 | F33: 0.05763788623 | G33: 0.1881772738 | H33: 0.1230252195
B34: Cana | C34: 0 | D34: 0 | E34: 0.009541937557 | F34: 0.0006930407161 | G34: 0 | H34: 0.00370518633
B35: Mosaico de Usos | C35: 0.3412959092 | D35: 0.4406718002 | E35: 0.3789582973 | F35: 0.4416979498 | G35: 0.292515181 | H35: 0.3733859631
B36: Urbanização | C36: 0.01164526724 | D36: 0.03534832959 | E36: 0.109757002 | F36: 0.02535373953 | G36: 0.1808635555 | H36: 0.1013992199
B37: Áreas Não Vegetadas | C37: 0 | D37: 0.002910325593 | E37: 0.003485526413 | F37: 0 | G37: 0.000771630825 | H37: 0.001973616839
B38: Rios | C38: 0 | D38: 0 | E38: 0 | F38: 0 | G38: 0.000771630825 | H38: 0.000214118808
B39: Soja | C39: 0.000298596596 | D39: 0.09579821743 | E39: 0.0303809359 | F39: 0.03817499278 | G39: 0.002918777468 | H39: 0.03312324865
B40: Lavouras Temporárias | C40: 0 | D40: 0.04262414358 | E40: 0.01028353892 | F40: 0.04100490904 | G40: 0.005099473278 | H40: 0.01844214603
B41: Café | C41: 0.02567930726 | D41: 0.00666949615 | E41: 0.08392455442 | F41: 0.06456829339 | G41: 0.06907773342 | H41: 0.06300678664
B42: Citrus | C42: 0 | D42: 0.000666949615 | E42: 0.007811534373 | F42: 0.02107998845 | G42: 0.005166571611 | H42: 0.007875848329
B43: Lavouras Perenes | C43: 0 | D43: 0.02243375978 | E43: 0.01006105851 | F43: 0.02714409472 | G43: 0.005099473278 | H43: 0.01302400924
C44: =SUM(C29:C43) -> 1 | D44: =SUM(D29:D43) -> 1 | E44: 1 | F44: 1 | G44: 1 | H44: 1

Sheet CN4
A1: OBJECTID * | B1: NOME | C1: VALUE_3 | D1: VALUE_4 | E1: VALUE_9 | F1: VALUE_11 | G1: VALUE_15 | H1: VALUE_20 | I1: VALUE_21 | J1: VALUE_24 | K1: VALUE_25 | L1: VALUE_33 | M1: VALUE_39 | N1: VALUE_41 | O1: VALUE_46 | P1: VALUE_47 | Q1: VALUE_48
A2: 1 | B2: sub1 | C2: 137700 | D2: 0 | E2: 0 | F2: 0 | G2: 1328400 | H2: 0 | I2: 1372500 | J2: 96300 | K2: 0 | L2: 0 | M2: 1800 | N2: 0 | O2: 77400 | P2: 0 | Q2: 0
A3: 2 | B3: sub2 | C3: 3247200 | D3: 0 | E3: 0 | F3: 0 | G3: 648000 | H3: 0 | I3: 6781500 | J3: 1603800 | K3: 43200 | L3: 0 | M3: 1435500 | N3: 642600 | O3: 99000 | P3: 9900 | Q3: 333000
A4: 3 | B4: sub3 | C4: 5630400 | D4: 0 | E4: 118800 | F4: 19800 | G4: 4219200 | H4: 352800 | I4: 14635800 | J4: 6013800 | K4: 90900 | L4: 0 | M4: 1111500 | N4: 383400 | O4: 3112200 | P4: 342000 | Q4: 377100
A5: 4 | B5: sub4 | C5: 3620700 | D5: 43200 | E5: 126900 | F5: 14400 | G5: 905400 | H5: 13500 | I5: 7129800 | J5: 727200 | K5: 0 | L5: 0 | M5: 602100 | N5: 640800 | O5: 1006200 | P5: 330300 | Q5: 423000
A6: 5 | B6: sub5 | C6: 4493700 | D6: 0 | E6: 118800 | F6: 107100 | G6: 5178600 | H6: 0 | I6: 8332200 | J6: 6203700 | K6: 8100 | L6: 32400 | M6: 78300 | N6: 136800 | O6: 1851300 | P6: 144900 | Q6: 140400
A8: CN1
B9: NOME | C9: Formação Florestal | D9: Formação Savânica | E9: Silvicultura | F9: Campos Alagados | G9: Pastagem | H9: Cana | I9: Mosaico de Usos | J9: Urbanização | K9: Áreas Não Vegetadas | L9: Rios | M9: Soja | N9: Lavouras Temporárias | O9: Café | P9: Citrus | Q9: Lavouras Perenes
B10: sub1 | C10: =C2/10^6 -> 0.1377 | D10: =D2/10^6 -> 0 | E10: 0 | F10: 0 | G10: 1.3284 | H10: 0 | I10: 1.3725 | J10: 0.0963 | K10: 0 | L10: 0 | M10: 0.0018 | N10: 0 | O10: 0.0774 | P10: 0 | Q10: 0 | T10: =SUM(C10:Q10) -> 3.0141
B11: sub2 | C11: =C3/10^6 -> 3.2472 | D11: 0 | E11: 0 | F11: 0 | G11: 0.648 | H11: 0 | I11: 6.7815 | J11: 1.6038 | K11: 0.0432 | L11: 0 | M11: 1.4355 | N11: 0.6426 | O11: 0.099 | P11: 0.0099 | Q11: 0.333 | T11: =SUM(C11:Q11) -> 14.8437
B12: sub3 | C12: =C4/10^6 -> 5.6304 | D12: 0 | E12: 0.1188 | F12: 0.0198 | G12: 4.2192 | H12: 0.3528 | I12: 14.6358 | J12: 6.0138 | K12: 0.0909 | L12: 0 | M12: 1.1115 | N12: 0.3834 | O12: 3.1122 | P12: 0.342 | Q12: 0.3771 | T12: 36.4077
B13: sub4 | C13: =C5/10^6 -> 3.6207 | D13: 0.0432 | E13: 0.1269 | F13: 0.0144 | G13: 0.9054 | H13: 0.0135 | I13: 7.1298 | J13: 0.7272 | K13: 0 | L13: 0 | M13: 0.6021 | N13: 0.6408 | O13: 1.0062 | P13: 0.3303 | Q13: 0.423 | T13: 15.5835
B14: sub5 | C14: =C6/10^6 -> 4.4937 | D14: 0 | E14: 0.1188 | F14: 0.1071 | G14: 5.1786 | H14: 0 | I14: 8.3322 | J14: 6.2037 | K14: 0.0081 | L14: 0.0324 | M14: 0.0783 | N14: 0.1368 | O14: 1.8513 | P14: 0.1449 | Q14: 0.1404 | T14: 26.8263
C15: =SUM(C10:C14) -> 17.1297 | D15: =SUM(D10:D14) -> 0.0432 | E15: =SUM(E10:E14) -> 0.3645 | F15: 0.1413 | G15: 12.2796 | H15: 0.3663 | I15: 38.2518 | J15: 14.6448 | K15: 0.1422 | L15: 0.0324 | M15: 3.2292 | N15: 1.8036 | O15: 6.1461 | P15: 0.8271 | Q15: =SUM(Q10:Q14) -> 1.2735 | T15: =SUM(T10:T14) -> 96.6753
C16: =C15/$T$15 -> 0.1771879684 | D16: 0.0004468566428 | E16: 0.003770352924 | F16: 0.001461593603 | G16: 0.1270190007 | H16: 0.00378897195 | I16: 0.3956729382 | J16: 0.1514844019 | K16: 0.001470903116 | L16: 0.0003351424821 | M16: 0.03340253405 | N16: 0.01865626484 | O16: 0.06357466695 | P16: 0.008555442807 | Q16: 0.01317296145 | R16: =SUM(C16:Q16) -> 1
B19: NOME | C19: Formação Florestal | E19: Silvicultura | F19: Campos Alagados | G19: Pastagem | H19: Cana | I19: Mosaico de Usos | J19: Urbanização | K19: Áreas Não Vegetadas | L19: Rios | M19: Soja | N19: Lavouras Temporárias | O19: Café | Q19: Lavouras Perenes
B20: sub1 | C20: =(C10/$T10) -> 0.04568527919 | D20: 0 | E20: 0 | F20: 0 | G20: 0.4407285757 | H20: 0 | I20: 0.4553598089 | J20: 0.03194983577 | K20: 0 | L20: 0 | M20: 0.000597193192 | N20: 0 | O20: 0.02567930726 | P20: 0 | Q20: 0 | T20: =SUM(C20:S20) -> 1
B21: sub2 | C21: =(C11/$T11) -> 0.2187594737 | D21: =(D11/$T11) -> 0 | E21: =(E11/$T11) -> 0 | F21: 0 | G21: 0.04365488389 | H21: 0 | I21: 0.4568604863 | J21: 0.1080458376 | K21: 0.002910325593 | L21: 0 | M21: 0.09670769417 | N21: 0.04329109319 | O21: 0.00666949615 | P21: =(P11/$T11) -> 0.000666949615 | Q21: =(Q11/$T11) -> 0.02243375978 | T21: =SUM(C21:S21) -> 1
B22: sub3 | C22: =(C12/$T12) -> 0.1546486046 | D22: 0 | E22: =(E12/$T12) -> 0.003263046004 | F22: 0.0005438410007 | G22: 0.1158875732 | H22: 0.00969025783 | I22: 0.4019973797 | J22: 0.1651793439 | K22: 0.002496724594 | L22: 0 | M22: 0.03052925617 | N22: 0.01053073938 | O22: 0.08548191729 | P22: 0.009393617284 | Q22: =(Q12/$T12) -> 0.01035769906 | T22: =SUM(C22:S22) -> 1
B23: sub4 | C23: =(C13/$T13) -> 0.2323419001 | D23: 0.002772162865 | E23: =(E13/$T13) -> 0.008143228415 | F23: 0.0009240542882 | G23: 0.05809991337 | H23: 0.0008663008952 | I23: 0.4575223794 | J23: 0.04666474155 | K23: 0 | L23: 0 | M23: 0.03863701992 | N23: 0.04112041582 | O23: 0.06456829339 | P23: 0.02119549524 | Q23: =(Q13/$T13) -> 0.02714409472 | T23: =SUM(C23:S23) -> 1
B24: sub5 | C24: =(C14/$T14) -> 0.1675109874 | D24: 0 | E24: =(E14/$T14) -> 0.004428489952 | F24: 0.00399235079 | G24: 0.1930419029 | H24: 0 | I24: 0.3105981816 | J24: 0.2312544033 | K24: 0.0003019424967 | L24: 0.001207769987 | M24: 0.002918777468 | N24: 0.005099473278 | O24: 0.06901063509 | P24: 0.005401415775 | Q24: =(Q14/$T14) -> 0.005233669943 | T24: =SUM(C24:S24) -> 1
B28: Classe | C28: sub1 | D28: sub2 | E28: sub3 | F28: sub4 | G28: sub5 | H28: sub24
B29: Formação Florestal | C29: 0.04568527919 | D29: 0.2187594737 | E29: 0.1546486046 | F29: 0.2323419001 | G29: 0.1675109874 | H29: 0.1771879684
B30: Formação Savânica | C30: 0 | D30: 0 | E30: 0 | F30: 0.002772162865 | G30: 0 | H30: 0.0004468566428
B31: Silvicultura | C31: 0 | D31: 0 | E31: 0.003263046004 | F31: 0.008143228415 | G31: 0.004428489952 | H31: 0.003770352924
B32: Campos Alagados | C32: 0 | D32: 0 | E32: 0.0005438410007 | F32: 0.0009240542882 | G32: 0.00399235079 | H32: 0.001461593603
B33: Pastagem | C33: 0.4407285757 | D33: 0.04365488389 | E33: 0.1158875732 | F33: 0.05809991337 | G33: 0.1930419029 | H33: 0.1270190007
B34: Cana | C34: 0 | D34: 0 | E34: 0.00969025783 | F34: 0.0008663008952 | G34: 0 | H34: 0.00378897195
B35: Mosaico de Usos | C35: 0.4553598089 | D35: 0.4568604863 | E35: 0.4019973797 | F35: 0.4575223794 | G35: 0.3105981816 | H35: 0.3956729382
B36: Urbanização | C36: 0.03194983577 | D36: 0.1080458376 | E36: 0.1651793439 | F36: 0.04666474155 | G36: 0.2312544033 | H36: 0.1514844019
B37: Áreas Não Vegetadas | C37: 0 | D37: 0.002910325593 | E37: 0.002496724594 | F37: 0 | G37: 0.0003019424967 | H37: 0.001470903116
B38: Rios | C38: 0 | D38: 0 | E38: 0 | F38: 0 | G38: 0.001207769987 | H38: 0.0003351424821
B39: Soja | C39: 0.000597193192 | D39: 0.09670769417 | E39: 0.03052925617 | F39: 0.03863701992 | G39: 0.002918777468 | H39: 0.03340253405
B40: Lavouras Temporárias | C40: 0 | D40: 0.04329109319 | E40: 0.01053073938 | F40: 0.04112041582 | G40: 0.005099473278 | H40: 0.01865626484
B41: Café | C41: 0.02567930726 | D41: 0.00666949615 | E41: 0.08548191729 | F41: 0.06456829339 | G41: 0.06901063509 | H41: 0.06357466695
B42: Citrus | C42: 0 | D42: 0.000666949615 | E42: 0.009393617284 | F42: 0.02119549524 | G42: 0.005401415775 | H42: 0.008555442807
B43: Lavouras Perenes | C43: 0 | D43: 0.02243375978 | E43: 0.01035769906 | F43: 0.02714409472 | G43: 0.005233669943 | H43: 0.01317296145
C44: =SUM(C29:C43) -> 1 | D44: =SUM(D29:D43) -> 1 | E44: 1 | F44: 1 | G44: 1 | H44: 1

Sheet CN5
A1: OBJECTID * | B1: NOME | C1: VALUE_3 | D1: VALUE_4 | E1: VALUE_9 | F1: VALUE_11 | G1: VALUE_15 | H1: VALUE_20 | I1: VALUE_21 | J1: VALUE_24 | K1: VALUE_25 | L1: VALUE_33 | M1: VALUE_39 | N1: VALUE_41 | O1: VALUE_46 | P1: VALUE_47 | Q1: VALUE_48
A2: 1 | B2: sub1 | C2: 432900 | D2: 0 | E2: 0 | F2: 0 | G2: 1306800 | H2: 0 | I2: 1099800 | J2: 96300 | K2: 0 | L2: 0 | M2: 900 | N2: 0 | O2: 77400 | P2: 0 | Q2: 0
A3: 2 | B3: sub2 | C3: 4031100 | D3: 0 | E3: 0 | F3: 0 | G3: 646200 | H3: 0 | I3: 6067800 | J3: 1543500 | K3: 43200 | L3: 0 | M3: 1431000 | N3: 639900 | O3: 99000 | P3: 9900 | Q3: 332100
A4: 3 | B4: sub3 | C4: 7613100 | D4: 0 | E4: 118800 | F4: 13500 | G4: 4110300 | H4: 350100 | I4: 12877200 | J4: 5966100 | K4: 90900 | L4: 0 | M4: 1111500 | N4: 379800 | O4: 3089700 | P4: 312300 | Q4: 374400
A5: 4 | B5: sub4 | C5: 3988800 | D5: 43200 | E5: 126900 | F5: 7200 | G5: 899100 | H5: 13500 | I5: 6788700 | J5: 726300 | K5: 0 | L5: 0 | M5: 594000 | N5: 638100 | O5: 1005300 | P5: 329400 | Q5: 423000
A6: 5 | B6: sub5 | C6: 5667300 | D6: 0 | E6: 118800 | F6: 94500 | G6: 5081400 | H6: 0 | I6: 7409700 | J6: 6085800 | K6: 8100 | L6: 20700 | M6: 78300 | N6: 136800 | O6: 1848600 | P6: 140400 | Q6: 135900
A8: CN1
B9: NOME | C9: Formação Florestal | D9: Formação Savânica | E9: Silvicultura | F9: Campos Alagados | G9: Pastagem | H9: Cana | I9: Mosaico de Usos | J9: Urbanização | K9: Áreas Não Vegetadas | L9: Rios | M9: Soja | N9: Lavouras Temporárias | O9: Café | P9: Citrus | Q9: Lavouras Perenes
B10: sub1 | C10: =C2/10^6 -> 0.4329 | D10: =D2/10^6 -> 0 | E10: 0 | F10: 0 | G10: 1.3068 | H10: 0 | I10: 1.0998 | J10: 0.0963 | K10: 0 | L10: 0 | M10: 0.0009 | N10: 0 | O10: 0.0774 | P10: 0 | Q10: 0 | T10: =SUM(C10:Q10) -> 3.0141
B11: sub2 | C11: =C3/10^6 -> 4.0311 | D11: 0 | E11: 0 | F11: 0 | G11: 0.6462 | H11: 0 | I11: 6.0678 | J11: 1.5435 | K11: 0.0432 | L11: 0 | M11: 1.431 | N11: 0.6399 | O11: 0.099 | P11: 0.0099 | Q11: 0.3321 | T11: =SUM(C11:Q11) -> 14.8437
B12: sub3 | C12: 7.6131 | D12: 0 | E12: 0.1188 | F12: 0.0135 | G12: 4.1103 | H12: 0.3501 | I12: 12.8772 | J12: 5.9661 | K12: 0.0909 | L12: 0 | M12: 1.1115 | N12: 0.3798 | O12: 3.0897 | P12: 0.3123 | Q12: 0.3744 | T12: 36.4077
B13: sub4 | C13: 3.9888 | D13: 0.0432 | E13: 0.1269 | F13: 0.0072 | G13: 0.8991 | H13: 0.0135 | I13: 6.7887 | J13: 0.7263 | K13: 0 | L13: 0 | M13: 0.594 | N13: 0.6381 | O13: 1.0053 | P13: 0.3294 | Q13: 0.423 | T13: 15.5835
B14: sub5 | C14: 5.6673 | D14: 0 | E14: 0.1188 | F14: 0.0945 | G14: 5.0814 | H14: 0 | I14: 7.4097 | J14: 6.0858 | K14: 0.0081 | L14: 0.0207 | M14: 0.0783 | N14: 0.1368 | O14: 1.8486 | P14: 0.1404 | Q14: 0.1359 | T14: 26.8263
C15: =SUM(C10:C14) -> 21.7332 | D15: =SUM(D10:D14) -> 0.0432 | E15: =SUM(E10:E14) -> 0.3645 | F15: 0.1152 | G15: 12.0438 | H15: 0.3636 | I15: 34.2432 | J15: 14.418 | K15: 0.1422 | L15: 0.0207 | M15: 3.2157 | N15: 1.7946 | O15: 6.12 | P15: 0.792 | Q15: =SUM(Q10:Q14) -> 1.2654 | T15: =SUM(T10:T14) -> 96.6753
C16: =C15/$T$15 -> 0.2248061294 | D16: 0.0004468566428 | E16: 0.003770352924 | F16: 0.001191617714 | G16: 0.1245799082 | H16: 0.00376104341 | I16: 0.3542083655 | J16: 0.1491384045 | K16: 0.001470903116 | L16: 0.000214118808 | M16: 0.03326289135 | N16: 0.0185631697 | O16: 0.06330469106 | P16: 0.008192371785 | Q16: 0.01308917583 | R16: =SUM(C16:Q16) -> 1
B19: NOME | C19: Formação Florestal | E19: Silvicultura | F19: Campos Alagados | G19: Pastagem | H19: Cana | I19: Mosaico de Usos | J19: Urbanização | K19: Áreas Não Vegetadas | L19: Rios | M19: Soja | N19: Lavouras Temporárias | O19: Café | Q19: Lavouras Perenes
B20: sub1 | C20: =(C10/$T10) -> 0.1436249627 | D20: 0 | E20: 0 | F20: 0 | G20: 0.4335622574 | H20: 0 | I20: 0.3648850403 | J20: 0.03194983577 | K20: 0 | L20: 0 | M20: 0.000298596596 | N20: 0 | O20: 0.02567930726 | P20: 0 | Q20: 0 | T20: =SUM(C20:S20) -> 1
B21: sub2 | C21: =(C11/$T11) -> 0.2715697569 | D21: =(D11/$T11) -> 0 | E21: =(E11/$T11) -> 0 | F21: 0 | G21: 0.04353362032 | H21: 0 | I21: 0.4087794822 | J21: 0.1039835082 | K21: 0.002910325593 | L21: 0 | M21: 0.09640453526 | N21: 0.04310919784 | O21: 0.00666949615 | P21: =(P11/$T11) -> 0.000666949615 | Q21: =(Q11/$T11) -> 0.02237312799 | T21: =SUM(C21:S21) -> 1
B22: sub3 | C22: =(C12/$T12) -> 0.2091068648 | D22: 0 | E22: =(E12/$T12) -> 0.003263046004 | F22: 0.0003708006823 | G22: 0.1128964477 | H22: 0.009616097694 | I22: 0.3536944108 | J22: 0.1638691815 | K22: 0.002496724594 | L22: 0 | M22: 0.03052925617 | N22: 0.01043185919 | O22: 0.08486391615 | P22: 0.008577855783 | Q22: =(Q12/$T12) -> 0.01028353892 | T22: =SUM(C22:S22) -> 1
B23: sub4 | C23: =(C13/$T13) -> 0.2559630378 | D23: 0.002772162865 | E23: =(E13/$T13) -> 0.008143228415 | F23: 0.0004620271441 | G23: 0.05769563962 | H23: 0.0008663008952 | I23: 0.4356338435 | J23: 0.04660698816 | K23: 0 | L23: 0 | M23: 0.03811723939 | N23: 0.04094715565 | O23: 0.06451053999 | P23: 0.02113774184 | Q23: =(Q13/$T13) -> 0.02714409472 | T23: =SUM(C23:S23) -> 1
B24: sub5 | C24: =(C14/$T14) -> 0.2112591002 | D24: 0 | E24: =(E14/$T14) -> 0.004428489952 | F24: 0.003522662462 | G24: 0.1894185929 | H24: 0 | I24: 0.2762102862 | J24: 0.2268594625 | K24: 0.0003019424967 | L24: 0.000771630825 | M24: 0.002918777468 | N24: 0.005099473278 | O24: 0.06890998759 | P24: 0.005233669943 | Q24: =(Q14/$T14) -> 0.005065924112 | T24: =SUM(C24:S24) -> 1
B28: Classe | C28: sub1 | D28: sub2 | E28: sub3 | F28: sub4 | G28: sub5 | H28: sub24
B29: Formação Florestal | C29: 0.1436249627 | D29: 0.2715697569 | E29: 0.2091068648 | F29: 0.2559630378 | G29: 0.2112591002 | H29: 0.2248061294
B30: Formação Savânica | C30: 0 | D30: 0 | E30: 0 | F30: 0.002772162865 | G30: 0 | H30: 0.0004468566428
B31: Silvicultura | C31: 0 | D31: 0 | E31: 0.003263046004 | F31: 0.008143228415 | G31: 0.004428489952 | H31: 0.003770352924
B32: Campos Alagados | C32: 0 | D32: 0 | E32: 0.0003708006823 | F32: 0.0004620271441 | G32: 0.003522662462 | H32: 0.001191617714
B33: Pastagem | C33: 0.4335622574 | D33: 0.04353362032 | E33: 0.1128964477 | F33: 0.05769563962 | G33: 0.1894185929 | H33: 0.1245799082
B34: Cana | C34: 0 | D34: 0 | E34: 0.009616097694 | F34: 0.0008663008952 | G34: 0 | H34: 0.00376104341
B35: Mosaico de Usos | C35: 0.3648850403 | D35: 0.4087794822 | E35: 0.3536944108 | F35: 0.4356338435 | G35: 0.2762102862 | H35: 0.3542083655
B36: Urbanização | C36: 0.03194983577 | D36: 0.1039835082 | E36: 0.1638691815 | F36: 0.04660698816 | G36: 0.2268594625 | H36: 0.1491384045
B37: Áreas Não Vegetadas | C37: 0 | D37: 0.002910325593 | E37: 0.002496724594 | F37: 0 | G37: 0.0003019424967 | H37: 0.001470903116
B38: Rios | C38: 0 | D38: 0 | E38: 0 | F38: 0 | G38: 0.000771630825 | H38: 0.000214118808
B39: Soja | C39: 0.000298596596 | D39: 0.09640453526 | E39: 0.03052925617 | F39: 0.03811723939 | G39: 0.002918777468 | H39: 0.03326289135
B40: Lavouras Temporárias | C40: 0 | D40: 0.04310919784 | E40: 0.01043185919 | F40: 0.04094715565 | G40: 0.005099473278 | H40: 0.0185631697
B41: Café | C41: 0.02567930726 | D41: 0.00666949615 | E41: 0.08486391615 | F41: 0.06451053999 | G41: 0.06890998759 | H41: 0.06330469106
B42: Citrus | C42: 0 | D42: 0.000666949615 | E42: 0.008577855783 | F42: 0.02113774184 | G42: 0.005233669943 | H42: 0.008192371785
B43: Lavouras Perenes | C43: 0 | D43: 0.02237312799 | E43: 0.01028353892 | F43: 0.02714409472 | G43: 0.005065924112 | H43: 0.01308917583
C44: =SUM(C29:C43) -> 1 | D44: =SUM(D29:D43) -> 1 | E44: 1 | F44: 1 | G44: 1 | H44: 1

Sheet CN6
A1: OBJECTID * | B1: NOME | C1: VALUE_3 | D1: VALUE_4 | E1: VALUE_9 | F1: VALUE_11 | G1: VALUE_15 | H1: VALUE_20 | I1: VALUE_21 | J1: VALUE_24 | K1: VALUE_25 | L1: VALUE_33 | M1: VALUE_39 | N1: VALUE_41 | O1: VALUE_46 | P1: VALUE_47 | Q1: VALUE_48
A2: 1 | B2: sub1 | C2: 603900 | D2: 0 | E2: 0 | F2: 0 | G2: 1261800 | H2: 0 | I2: 973800 | J2: 96300 | K2: 0 | L2: 0 | M2: 900 | N2: 0 | O2: 77400 | P2: 0 | Q2: 0
A3: 2 | B3: sub2 | C3: 4560300 | D3: 0 | E3: 0 | F3: 0 | G3: 637200 | H3: 0 | I3: 5643000 | J3: 1463400 | K3: 43200 | L3: 0 | M3: 1422000 | N3: 632700 | O3: 99000 | P3: 9900 | Q3: 333000
A4: 3 | B4: sub3 | C4: 8772300 | D4: 0 | E4: 115200 | F4: 14400 | G4: 3962700 | H4: 347400 | I4: 11974500 | J4: 5944500 | K4: 90900 | L4: 0 | M4: 1106100 | N4: 374400 | O4: 3055500 | P4: 284400 | Q4: 365400
A5: 4 | B5: sub4 | C5: 4236300 | D5: 43200 | E5: 121500 | F5: 2700 | G5: 881100 | H5: 10800 | I5: 6574500 | J5: 726300 | K5: 0 | L5: 0 | M5: 594000 | N5: 637200 | O5: 1004400 | P5: 328500 | Q5: 423000
A6: 5 | B6: sub5 | C6: 6390000 | D6: 0 | E6: 118800 | F6: 89100 | G6: 4942800 | H6: 0 | I6: 6942600 | J6: 5979600 | K6: 8100 | L6: 20700 | M6: 78300 | N6: 136800 | O6: 1849500 | P6: 138600 | Q6: 131400
A8: CN1
B9: NOME | C9: Formação Florestal | D9: Formação Savânica | E9: Silvicultura | F9: Campos Alagados | G9: Pastagem | H9: Cana | I9: Mosaico de Usos | J9: Urbanização | K9: Áreas Não Vegetadas | L9: Rios | M9: Soja | N9: Lavouras Temporárias | O9: Café | P9: Citrus | Q9: Lavouras Perenes
B10: sub1 | C10: =C2/10^6 -> 0.6039 | D10: =D2/10^6 -> 0 | E10: 0 | F10: 0 | G10: 1.2618 | H10: 0 | I10: 0.9738 | J10: 0.0963 | K10: 0 | L10: 0 | M10: 0.0009 | N10: 0 | O10: 0.0774 | P10: 0 | Q10: 0 | T10: =SUM(C10:Q10) -> 3.0141
B11: sub2 | C11: =C3/10^6 -> 4.5603 | D11: 0 | E11: 0 | F11: 0 | G11: 0.6372 | H11: 0 | I11: 5.643 | J11: 1.4634 | K11: 0.0432 | L11: 0 | M11: 1.422 | N11: 0.6327 | O11: 0.099 | P11: 0.0099 | Q11: 0.333 | T11: =SUM(C11:Q11) -> 14.8437
B12: sub3 | C12: 8.7723 | D12: 0 | E12: 0.1152 | F12: 0.0144 | G12: 3.9627 | H12: 0.3474 | I12: 11.9745 | J12: 5.9445 | K12: 0.0909 | L12: 0 | M12: 1.1061 | N12: 0.3744 | O12: 3.0555 | P12: 0.2844 | Q12: 0.3654 | T12: 36.4077
B13: sub4 | C13: 4.2363 | D13: 0.0432 | E13: 0.1215 | F13: 0.0027 | G13: 0.8811 | H13: 0.0108 | I13: 6.5745 | J13: 0.7263 | K13: 0 | L13: 0 | M13: 0.594 | N13: 0.6372 | O13: 1.0044 | P13: 0.3285 | Q13: 0.423 | T13: 15.5835
B14: sub5 | C14: 6.39 | D14: 0 | E14: 0.1188 | F14: 0.0891 | G14: 4.9428 | H14: 0 | I14: 6.9426 | J14: 5.9796 | K14: 0.0081 | L14: 0.0207 | M14: 0.0783 | N14: 0.1368 | O14: 1.8495 | P14: 0.1386 | Q14: 0.1314 | T14: 26.8263
C15: =SUM(C10:C14) -> 24.5628 | D15: =SUM(D10:D14) -> 0.0432 | E15: =SUM(E10:E14) -> 0.3555 | F15: 0.1062 | G15: 11.6856 | H15: 0.3582 | I15: 32.1084 | J15: 14.2101 | K15: 0.1422 | L15: 0.0207 | M15: 3.2013 | N15: 1.7811 | O15: 6.0858 | P15: 0.7614 | Q15: =SUM(Q10:Q14) -> 1.2528 | T15: =SUM(T10:T14) -> 96.6753
C16: =C15/$T$15 -> 0.2540752395 | D16: 0.0004468566428 | E16: 0.00367725779 | F16: 0.00109852258 | G16: 0.1208747219 | H16: 0.00370518633 | I16: 0.3321261998 | J16: 0.1469879069 | K16: 0.001470903116 | L16: 0.000214118808 | M16: 0.03311393913 | N16: 0.018423527 | O16: 0.06295092955 | P16: 0.007875848329 | Q16: 0.01295884264 | R16: =SUM(C16:Q16) -> 1
B19: NOME | C19: Formação Florestal | E19: Silvicultura | F19: Campos Alagados | G19: Pastagem | H19: Cana | I19: Mosaico de Usos | J19: Urbanização | K19: Áreas Não Vegetadas | L19: Rios | M19: Soja | N19: Lavouras Temporárias | O19: Café | Q19: Lavouras Perenes
B20: sub1 | C20: =(C10/$T10) -> 0.2003583159 | D20: 0 | E20: 0 | F20: 0 | G20: 0.4186324276 | H20: 0 | I20: 0.3230815169 | J20: 0.03194983577 | K20: 0 | L20: 0 | M20: 0.000298596596 | N20: 0 | O20: 0.02567930726 | P20: 0 | Q20: 0 | T20: =SUM(C20:S20) -> 1
B21: sub2 | C21: =(C11/$T11) -> 0.3072212454 | D21: =(D11/$T11) -> 0 | E21: =(E11/$T11) -> 0 | F21: 0 | G21: 0.04292730249 | H21: 0 | I21: 0.3801612805 | J21: 0.09858727945 | K21: 0.002910325593 | L21: 0 | M21: 0.09579821743 | N21: 0.04262414358 | O21: 0.00666949615 | P21: =(P11/$T11) -> 0.000666949615 | Q21: =(Q11/$T11) -> 0.02243375978 | T21: =SUM(C21:S21) -> 1
B22: sub3 | C22: =(C12/$T12) -> 0.2409462833 | D22: 0 | E22: =(E12/$T12) -> 0.003164165822 | F22: 0.0003955207278 | G22: 0.1088423603 | H22: 0.009541937557 | I22: 0.3289002052 | J22: 0.1632759004 | K22: 0.002496724594 | L22: 0 | M22: 0.0303809359 | N22: 0.01028353892 | O22: 0.08392455442 | P22: 0.007811534373 | Q22: =(Q12/$T12) -> 0.01003633847 | T22: =SUM(C22:S22) -> 1
B23: sub4 | C23: =(C13/$T13) -> 0.2718452209 | D23: 0.002772162865 | E23: =(E13/$T13) -> 0.007796708057 | F23: 0.000173260179 | G23: 0.05654057176 | H23: 0.0006930407161 | I23: 0.421888536 | J23: 0.04660698816 | K23: 0 | L23: 0 | M23: 0.03811723939 | N23: 0.04088940225 | O23: 0.0644527866 | P23: 0.02107998845 | Q23: =(Q13/$T13) -> 0.02714409472 | T23: =SUM(C23:S23) -> 1
B24: sub5 | C24: =(C14/$T14) -> 0.2381990808 | D24: 0 | E24: =(E14/$T14) -> 0.004428489952 | F24: 0.003321367464 | G24: 0.1842520213 | H24: 0 | I24: 0.2587982689 | J24: 0.2229006609 | K24: 0.0003019424967 | L24: 0.000771630825 | M24: 0.002918777468 | N24: 0.005099473278 | O24: 0.06894353675 | P24: 0.005166571611 | Q24: =(Q14/$T14) -> 0.00489817828 | T24: =SUM(C24:S24) -> 1
B28: Classe | C28: sub1 | D28: sub2 | E28: sub3 | F28: sub4 | G28: sub5 | H28: sub24
B29: Formação Florestal | C29: 0.2003583159 | D29: 0.3072212454 | E29: 0.2409462833 | F29: 0.2718452209 | G29: 0.2381990808 | H29: 0.2540752395
B30: Formação Savânica | C30: 0 | D30: 0 | E30: 0 | F30: 0.002772162865 | G30: 0 | H30: 0.0004468566428
B31: Silvicultura | C31: 0 | D31: 0 | E31: 0.003164165822 | F31: 0.007796708057 | G31: 0.004428489952 | H31: 0.00367725779
B32: Campos Alagados | C32: 0 | D32: 0 | E32: 0.0003955207278 | F32: 0.000173260179 | G32: 0.003321367464 | H32: 0.00109852258
B33: Pastagem | C33: 0.4186324276 | D33: 0.04292730249 | E33: 0.1088423603 | F33: 0.05654057176 | G33: 0.1842520213 | H33: 0.1208747219
B34: Cana | C34: 0 | D34: 0 | E34: 0.009541937557 | F34: 0.0006930407161 | G34: 0 | H34: 0.00370518633
B35: Mosaico de Usos | C35: 0.3230815169 | D35: 0.3801612805 | E35: 0.3289002052 | F35: 0.421888536 | G35: 0.2587982689 | H35: 0.3321261998
B36: Urbanização | C36: 0.03194983577 | D36: 0.09858727945 | E36: 0.1632759004 | F36: 0.04660698816 | G36: 0.2229006609 | H36: 0.1469879069
B37: Áreas Não Vegetadas | C37: 0 | D37: 0.002910325593 | E37: 0.002496724594 | F37: 0 | G37: 0.0003019424967 | H37: 0.001470903116
B38: Rios | C38: 0 | D38: 0 | E38: 0 | F38: 0 | G38: 0.000771630825 | H38: 0.000214118808
B39: Soja | C39: 0.000298596596 | D39: 0.09579821743 | E39: 0.0303809359 | F39: 0.03811723939 | G39: 0.002918777468 | H39: 0.03311393913
B40: Lavouras Temporárias | C40: 0 | D40: 0.04262414358 | E40: 0.01028353892 | F40: 0.04088940225 | G40: 0.005099473278 | H40: 0.018423527
B41: Café | C41: 0.02567930726 | D41: 0.00666949615 | E41: 0.08392455442 | F41: 0.0644527866 | G41: 0.06894353675 | H41: 0.06295092955
B42: Citrus | C42: 0 | D42: 0.000666949615 | E42: 0.007811534373 | F42: 0.02107998845 | G42: 0.005166571611 | H42: 0.007875848329
B43: Lavouras Perenes | C43: 0 | D43: 0.02243375978 | E43: 0.01003633847 | F43: 0.02714409472 | G43: 0.00489817828 | H43: 0.01295884264
C44: =SUM(C29:C43) -> 1 | D44: =SUM(D29:D43) -> 1 | E44: 1 | F44: 1 | G44: 1 | H44: 1

Sheet CN7
A1: OBJECTID * | B1: NOME | C1: VALUE_3 | E1: VALUE_9 | F1: VALUE_11 | G1: VALUE_15 | H1: VALUE_20 | I1: VALUE_21 | J1: VALUE_24 | K1: VALUE_25 | L1: VALUE_33 | M1: VALUE_39 | N1: VALUE_41 | O1: VALUE_46 | Q1: VALUE_48
A2: 1 | B2: sub1 | C2: 410400 | D2: 0 | E2: 0 | F2: 0 | G2: 1899900 | H2: 7200 | I2: 54900 | J2: 84600 | K2: 0 | L2: 0 | M2: 0 | N2: 0 | O2: 557100 | P2: 0 | Q2: 0
A3: 2 | B3: sub2 | C3: 4650300 | D3: 0 | E3: 13500 | F3: 0 | G3: 2824200 | H3: 5175900 | I3: 972900 | J3: 668700 | K3: 90900 | L3: 22500 | M3: 0 | N3: 207900 | O3: 216900 | P3: 0 | Q3: 0
A4: 3 | B4: sub3 | C4: 7038000 | D4: 0 | E4: 576000 | F4: 0 | G4: 9013500 | H4: 2241000 | I4: 1881000 | J4: 5188500 | K4: 1036800 | L4: 16200 | M4: 0 | N4: 2331900 | O4: 7083900 | P4: 0 | Q4: 900
A5: 4 | B5: sub4 | C5: 3901500 | D5: 0 | E5: 543600 | F5: 0 | G5: 3243600 | H5: 1548000 | I5: 423900 | J5: 522000 | K5: 32400 | L5: 10800 | M5: 900 | N5: 1595700 | O5: 3708000 | P5: 0 | Q5: 53100
A6: 5 | B6: sub5 | C6: 4998600 | D6: 0 | E6: 222300 | F6: 15300 | G6: 9893700 | H6: 666900 | I6: 965700 | J6: 5051700 | K6: 774900 | L6: 70200 | M6: 0 | N6: 935100 | O6: 3220200 | P6: 0 | Q6: 5400
A11: CN1
B12: NOME | C12: Formação Florestal | E12: Silvicultura | F12: Campos Alagados | G12: Pastagem | H12: Cana | I12: Mosaico de Usos | J12: Urbanização | K12: Áreas Não Vegetadas | L12: Rios | M12: Soja | N12: Lavouras Temporárias | O12: Café | Q12: Lavouras Perenes
B13: sub1 | C13: =C2/10^6 -> 0.4104 | D13: =D2/10^6 -> 0 | E13: =E2/10^6 -> 0 | F13: 0 | G13: 1.8999 | H13: 0.0072 | I13: 0.0549 | J13: 0.0846 | K13: 0 | L13: 0 | M13: 0 | N13: 0 | O13: 0.5571 | P13: 0 | Q13: 0 | T13: =SUM(C13:S13) -> 3.0141
B14: sub2 | C14: =C3/10^6 -> 4.6503 | D14: 0 | E14: 0.0135 | F14: 0 | G14: 2.8242 | H14: 5.1759 | I14: 0.9729 | J14: 0.6687 | K14: 0.0909 | L14: 0.0225 | M14: 0 | N14: 0.2079 | O14: 0.2169 | P14: 0 | Q14: 0 | T14: =SUM(C14:S14) -> 14.8437
B15: sub3 | C15: 7.038 | D15: 0 | E15: 0.576 | F15: 0 | G15: 9.0135 | H15: 2.241 | I15: 1.881 | J15: 5.1885 | K15: 1.0368 | L15: 0.0162 | M15: 0 | N15: 2.3319 | O15: 7.0839 | P15: 0 | Q15: 0.0009 | T15: 36.4077
B16: sub4 | C16: 3.9015 | D16: 0 | E16: 0.5436 | F16: 0 | G16: 3.2436 | H16: 1.548 | I16: 0.4239 | J16: 0.522 | K16: 0.0324 | L16: 0.0108 | M16: 0.0009 | N16: 1.5957 | O16: 3.708 | P16: 0 | Q16: 0.0531 | T16: 15.5835
B17: sub5 | C17: 4.9986 | D17: 0 | E17: 0.2223 | F17: 0.0153 | G17: 9.8937 | H17: 0.6669 | I17: 0.9657 | J17: 5.0517 | K17: 0.7749 | L17: 0.0702 | M17: 0 | N17: 0.9351 | O17: 3.2202 | P17: 0 | Q17: 0.0054 | T17: 26.82
C18: =SUM(C13:C17) -> 20.9988 | D18: =SUM(D13:D17) -> 0 | E18: =SUM(E13:E17) -> 1.3554 | F18: 0.0153 | G18: 26.8749 | H18: 9.639 | I18: 4.2984 | J18: 11.5155 | K18: 1.935 | L18: 0.1197 | M18: 0.0009 | N18: 5.0706 | O18: 14.7861 | P18: 0 | Q18: 0.0594 | T18: =SUM(T13:T17) -> 96.669
C19: =C18/$T$18 -> 0.2172237222 | D19: 0 | E19: 0.01402104087 | F19: 0.0001582720417 | G19: 0.2780094963 | H19: 0.09971138628 | I19: 0.0444651336 | J19: 0.1191229867 | K19: 0.02001675822 | L19: 0.001238245973 | M19: 9.310120101e-06 | N19: 0.05245321665 | O19: 0.1529559631 | P19: 0 | Q19: 0.0006144679266 | R19: =SUM(C19:Q19) -> 1
B20: NOME | C20: Formação Florestal | E20: Silvicultura | F20: Campos Alagados | G20: Pastagem | H20: Cana | I20: Mosaico de Usos | J20: Urbanização | K20: Áreas Não Vegetadas | L20: Rios | M20: Soja | N20: Lavouras Temporárias | O20: Café | Q20: Lavouras Perenes
B21: sub1 | C21: =(C13/$T13) -> 0.1361600478 | D21: 0 | E21: 0 | F21: 0 | G21: 0.6303374142 | H21: 0.002388772768 | I21: 0.01821439236 | J21: 0.02806808002 | K21: 0 | L21: 0 | M21: 0 | N21: 0 | O21: 0.1848312929 | P21: 0 | Q21: 0 | T21: =SUM(C21:S21) -> 1
B22: sub2 | C22: =(C14/$T14) -> 0.3132844237 | D22: =(D14/$T14) -> 0 | E22: =(E14/$T14) -> 0.0009094767477 | F22: 0 | G22: 0.1902625356 | H22: 0.3486933851 | I22: 0.06554295762 | J22: 0.0450494149 | K22: 0.006123810101 | L22: 0.00151579458 | M22: 0 | N22: 0.01400594191 | O22: 0.01461225975 | P22: =(P14/$T14) -> 0 | Q22: =(Q14/$T14) -> 0 | T22: =SUM(C22:S22) -> 1
B23: sub3 | C23: =(C15/$T15) -> 0.1933107557 | D23: 0 | E23: 0.01582082911 | F23: 0 | G23: 0.2475712555 | H23: 0.06155291326 | I23: 0.05166489506 | J23: 0.1425110622 | K23: 0.0284774924 | L23: 0.0004449608187 | M23: 0 | N23: 0.06404963785 | O23: 0.194571478 | P23: 0 | Q23: 2.472004548e-05 | T23: 1
B24: sub4 | C24: =(C16/$T16) -> 0.2503609587 | D24: 0 | E24: 0.03488304938 | F24: 0 | G24: 0.2081432284 | H24: 0.09933583598 | I24: 0.02720184811 | J24: 0.03349696795 | K24: 0.002079122148 | L24: 0.0006930407161 | M24: 5.775339301e-05 | N24: 0.1023967658 | O24: 0.2379439792 | P24: 0 | Q24: 0.003407450188 | T24: 1
B25: sub5 | C25: =(C17/$T17) -> 0.1863758389 | D25: 0 | E25: 0.008288590604 | F25: 0.0005704697987 | G25: 0.3688926174 | H25: 0.02486577181 | I25: 0.03600671141 | J25: 0.1883557047 | K25: 0.02889261745 | L25: 0.002617449664 | M25: 0 | N25: 0.03486577181 | O25: 0.1200671141 | P25: 0 | Q25: 0.0002013422819 | T25: 1
B29: Classe | C29: sub1 | D29: sub2 | E29: sub3 | F29: sub4 | G29: sub5 | H29: sub24
B30: Formação Florestal | C30: 0.1361600478 | D30: 0.3132844237 | E30: 0.1933107557 | F30: 0.2503609587 | G30: 0.1863758389 | H30: 0.2172237222
B31: Formação Savânica | C31: 0 | D31: 0 | E31: 0 | F31: 0 | G31: 0 | H31: 0
B32: Silvicultura | C32: 0 | D32: 0.0009094767477 | E32: 0.01582082911 | F32: 0.03488304938 | G32: 0.008288590604 | H32: 0.01402104087
B33: Campos Alagados | C33: 0 | D33: 0 | E33: 0 | F33: 0 | G33: 0.0005704697987 | H33: 0.0001582720417
B34: Pastagem | C34: 0.6303374142 | D34: 0.1902625356 | E34: 0.2475712555 | F34: 0.2081432284 | G34: 0.3688926174 | H34: 0.2780094963
B35: Cana | C35: 0.002388772768 | D35: 0.3486933851 | E35: 0.06155291326 | F35: 0.09933583598 | G35: 0.02486577181 | H35: 0.09971138628
B36: Mosaico de Usos | C36: 0.01821439236 | D36: 0.06554295762 | E36: 0.05166489506 | F36: 0.02720184811 | G36: 0.03600671141 | H36: 0.0444651336
B37: Urbanização | C37: 0.02806808002 | D37: 0.0450494149 | E37: 0.1425110622 | F37: 0.03349696795 | G37: 0.1883557047 | H37: 0.1191229867
B38: Áreas Não Vegetadas | C38: 0 | D38: 0.006123810101 | E38: 0.0284774924 | F38: 0.002079122148 | G38: 0.02889261745 | H38: 0.02001675822
B39: Rios | C39: 0 | D39: 0.00151579458 | E39: 0.0004449608187 | F39: 0.0006930407161 | G39: 0.002617449664 | H39: 0.001238245973
B40: Soja | C40: 0 | D40: 0 | E40: 0 | F40: 5.775339301e-05 | G40: 0 | H40: 9.310120101e-06
B41: Lavouras Temporárias | C41: 0 | D41: 0.01400594191 | E41: 0.06404963785 | F41: 0.1023967658 | G41: 0.03486577181 | H41: 0.05245321665
B42: Café | C42: 0.1848312929 | D42: 0.01461225975 | E42: 0.194571478 | F42: 0.2379439792 | G42: 0.1200671141 | H42: 0.1529559631
B43: Citrus | C43: 0 | D43: 0 | E43: 0 | F43: 0 | G43: 0 | H43: 0
B44: Lavouras Perenes | C44: 0 | D44: 0 | E44: 2.472004548e-05 | F44: 0.003407450188 | G44: 0.0002013422819 | H44: 0.0006144679266
C45: =SUM(C30:C44) -> 1 | D45: =SUM(D30:D44) -> 1 | E45: 1 | F45: 1 | G45: 1 | H45: 1

Sheet CN8
A1: OBJECTID * | B1: NOME | C1: VALUE_3 | E1: VALUE_9 | F1: VALUE_11 | G1: VALUE_15 | H1: VALUE_20 | I1: VALUE_21 | J1: VALUE_24 | K1: VALUE_25 | L1: VALUE_33 | M1: VALUE_39 | N1: VALUE_41 | O1: VALUE_46 | Q1: VALUE_48
A2: 1 | B2: sub1 | C2: 564300 | D2: 0 | E2: 0 | F2: 0 | G2: 1760400 | H2: 1800 | I2: 54900 | J2: 81000 | K2: 0 | L2: 0 | M2: 0 | N2: 0 | O2: 551700 | P2: 0 | Q2: 0
A3: 2 | B3: sub2 | C3: 5102100 | D3: 0 | E3: 9900 | F3: 0 | G3: 2567700 | H3: 5120100 | I3: 946800 | J3: 638100 | K3: 64800 | L3: 0 | M3: 0 | N3: 177300 | O3: 216900 | P3: 0 | Q3: 0
A4: 3 | B4: sub3 | C4: 8309700 | D4: 0 | E4: 413100 | F4: 0 | G4: 8354700 | H4: 2240100 | I4: 1848600 | J4: 5136300 | K4: 924300 | L4: 5400 | M4: 0 | N4: 2286900 | O4: 6887700 | P4: 0 | Q4: 900
A5: 4 | B5: sub4 | C5: 4167000 | D5: 0 | E5: 503100 | F5: 0 | G5: 3096900 | H5: 1537200 | I5: 423900 | J5: 522000 | K5: 32400 | L5: 0 | M5: 900 | N5: 1559700 | O5: 3687300 | P5: 0 | Q5: 53100
A6: 5 | B6: sub5 | C6: 5811300 | D6: 0 | E6: 216000 | F6: 15300 | G6: 9347400 | H6: 666900 | I6: 943200 | J6: 5000400 | K6: 672300 | L6: 45900 | M6: 0 | N6: 902700 | O6: 3193200 | P6: 0 | Q6: 5400
A8: CN1
B9: NOME | C9: Formação Florestal | E9: Silvicultura | F9: Campos Alagados | G9: Pastagem | H9: Cana | I9: Mosaico de Usos | J9: Urbanização | K9: Áreas Não Vegetadas | L9: Rios | M9: Soja | N9: Lavouras Temporárias | O9: Café | Q9: Lavouras Perenes
B10: sub1 | C10: =C2/10^6 -> 0.5643 | D10: =D2/10^6 -> 0 | E10: =E2/10^6 -> 0 | F10: =F2/10^6 -> 0 | G10: =G2/10^6 -> 1.7604 | H10: 0.0018 | I10: 0.0549 | J10: 0.081 | K10: 0 | L10: 0 | M10: 0 | N10: 0 | O10: 0.5517 | P10: 0 | Q10: 0 | T10: =SUM(C10:S10) -> 3.0141
B11: sub2 | C11: =C3/10^6 -> 5.1021 | D11: 0 | E11: 0.0099 | F11: 0 | G11: 2.5677 | H11: 5.1201 | I11: 0.9468 | J11: 0.6381 | K11: 0.0648 | L11: 0 | M11: 0 | N11: 0.1773 | O11: 0.2169 | P11: 0 | Q11: 0 | T11: =SUM(C11:S11) -> 14.8437
B12: sub3 | C12: 8.3097 | D12: 0 | E12: 0.4131 | F12: 0 | G12: 8.3547 | H12: 2.2401 | I12: 1.8486 | J12: 5.1363 | K12: 0.9243 | L12: 0.0054 | M12: 0 | N12: 2.2869 | O12: 6.8877 | P12: 0 | Q12: 0.0009 | T12: 36.4077
B13: sub4 | C13: 4.167 | D13: 0 | E13: 0.5031 | F13: 0 | G13: 3.0969 | H13: 1.5372 | I13: 0.4239 | J13: 0.522 | K13: 0.0324 | L13: 0 | M13: 0.0009 | N13: 1.5597 | O13: 3.6873 | P13: 0 | Q13: 0.0531 | T13: 15.5835
B14: sub5 | C14: 5.8113 | D14: 0 | E14: 0.216 | F14: 0.0153 | G14: 9.3474 | H14: 0.6669 | I14: 0.9432 | J14: 5.0004 | K14: 0.6723 | L14: 0.0459 | M14: 0 | N14: 0.9027 | O14: 3.1932 | P14: 0 | Q14: 0.0054 | T14: 26.82
C15: =SUM(C10:C14) -> 23.9544 | D15: =SUM(D10:D14) -> 0 | E15: =SUM(E10:E14) -> 1.1421 | F15: 0.0153 | G15: 25.1271 | H15: 9.5661 | I15: 4.2174 | J15: 11.3778 | K15: 1.6938 | L15: 0.0513 | M15: 0.0009 | N15: 4.9266 | O15: 14.5368 | P15: 0 | Q15: 0.0594 | T15: =SUM(T10:T14) -> 96.669
C16: =C15/$T$15 -> 0.2477981566 | D16: =D15/$T$15 -> 0 | E16: =E15/$T$15 -> 0.01181454241 | F16: 0.0001582720417 | G16: 0.2599292431 | H16: 0.09895726655 | I16: 0.04362722279 | J16: 0.1176985383 | K16: 0.01752164603 | L16: 0.0005306768457 | M16: 9.310120101e-06 | N16: 0.05096359743 | O16: 0.1503770599 | P16: 0 | Q16: 0.0006144679266 | R16: =SUM(C16:Q16) -> 1
B17: NOME | C17: Formação Florestal | E17: Silvicultura | F17: Campos Alagados | G17: Pastagem | H17: Cana | I17: Mosaico de Usos | J17: Urbanização | K17: Áreas Não Vegetadas | L17: Rios | M17: Soja | N17: Lavouras Temporárias | O17: Café | Q17: Lavouras Perenes
B18: sub1 | C18: =(C10/$T10) -> 0.1872200657 | D18: 0 | E18: 0 | F18: 0 | G18: 0.5840549418 | H18: 0.000597193192 | I18: 0.01821439236 | J18: 0.02687369364 | K18: 0 | L18: 0 | M18: 0 | N18: 0 | O18: 0.1830397133 | P18: 0 | Q18: 0 | T18: =SUM(C18:S18) -> 1
B19: sub2 | C19: =(C11/$T11) -> 0.3437215789 | D19: =(D11/$T11) -> 0 | E19: =(E11/$T11) -> 0.000666949615 | F19: 0 | G19: 0.1729824774 | H19: 0.3449342145 | I19: 0.06378463591 | J19: 0.04298793428 | K19: 0.004365488389 | L19: 0 | M19: 0 | N19: 0.01194446129 | O19: 0.01461225975 | P19: =(P11/$T11) -> 0 | Q19: =(Q11/$T11) -> 0 | T19: =SUM(C19:S19) -> 1
B20: sub3 | C20: =(C12/$T12) -> 0.22824018 | D20: 0 | E20: =(E12/$T12) -> 0.01134650088 | F20: 0 | G20: 0.2294761822 | H20: 0.06152819321 | I20: 0.05077497343 | J20: 0.1410772996 | K20: 0.02538748671 | L20: 0.0001483202729 | M20: 0 | N20: 0.06281363558 | O20: 0.1891825081 | P20: 0 | Q20: =(Q12/$T12) -> 2.472004548e-05 | T20: 1
B21: sub4 | C21: =(C13/$T13) -> 0.2673982096 | D21: 0 | E21: =(E13/$T13) -> 0.03228414669 | F21: 0 | G21: 0.1987294254 | H21: 0.09864279526 | I21: 0.02720184811 | J21: 0.03349696795 | K21: 0.002079122148 | L21: 0 | M21: 5.775339301e-05 | N21: 0.1000866301 | O21: 0.2366156512 | P21: 0 | Q21: =(Q13/$T13) -> 0.003407450188 | T21: 1
B22: sub5 | C22: =(C14/$T14) -> 0.2166778523 | D22: 0 | E22: =(E14/$T14) -> 0.008053691275 | F22: 0.0005704697987 | G22: 0.3485234899 | H22: 0.02486577181 | I22: 0.03516778523 | J22: 0.186442953 | K22: 0.02506711409 | L22: 0.001711409396 | M22: 0 | N22: 0.03365771812 | O22: 0.1190604027 | P22: 0 | Q22: =(Q14/$T14) -> 0.0002013422819 | T22: 1
B26: Classe | C26: sub1 | D26: sub2 | E26: sub3 | F26: sub4 | G26: sub5 | H26: sub24
B27: Formação Florestal | C27: 0.1872200657 | D27: 0.3437215789 | E27: 0.22824018 | F27: 0.2673982096 | G27: 0.2166778523 | H27: 0.2477981566
B28: Formação Savânica | C28: 0 | D28: 0 | E28: 0 | F28: 0 | G28: 0 | H28: 0
B29: Silvicultura | C29: 0 | D29: 0.000666949615 | E29: 0.01134650088 | F29: 0.03228414669 | G29: 0.008053691275 | H29: 0.01181454241
B30: Campos Alagados | C30: 0 | D30: 0 | E30: 0 | F30: 0 | G30: 0.0005704697987 | H30: 0.0001582720417
B31: Pastagem | C31: 0.5840549418 | D31: 0.1729824774 | E31: 0.2294761822 | F31: 0.1987294254 | G31: 0.3485234899 | H31: 0.2599292431
B32: Cana | C32: 0.000597193192 | D32: 0.3449342145 | E32: 0.06152819321 | F32: 0.09864279526 | G32: 0.02486577181 | H32: 0.09895726655
B33: Mosaico de Usos | C33: 0.01821439236 | D33: 0.06378463591 | E33: 0.05077497343 | F33: 0.02720184811 | G33: 0.03516778523 | H33: 0.04362722279
B34: Urbanização | C34: 0.02687369364 | D34: 0.04298793428 | E34: 0.1410772996 | F34: 0.03349696795 | G34: 0.186442953 | H34: 0.1176985383
B35: Áreas Não Vegetadas | C35: 0 | D35: 0.004365488389 | E35: 0.02538748671 | F35: 0.002079122148 | G35: 0.02506711409 | H35: 0.01752164603
B36: Rios | C36: 0 | D36: 0 | E36: 0.0001483202729 | F36: 0 | G36: 0.001711409396 | H36: 0.0005306768457
B37: Soja | C37: 0 | D37: 0 | E37: 0 | F37: 5.775339301e-05 | G37: 0 | H37: 9.310120101e-06
B38: Lavouras Temporárias | C38: 0 | D38: 0.01194446129 | E38: 0.06281363558 | F38: 0.1000866301 | G38: 0.03365771812 | H38: 0.05096359743
B39: Café | C39: 0.1830397133 | D39: 0.01461225975 | E39: 0.1891825081 | F39: 0.2366156512 | G39: 0.1190604027 | H39: 0.1503770599
B40: Citrus | C40: 0 | D40: 0 | E40: 0 | F40: 0 | G40: 0 | H40: 0
B41: Lavouras Perenes | C41: 0 | D41: 0 | E41: 2.472004548e-05 | F41: 0.003407450188 | G41: 0.0002013422819 | H41: 0.0006144679266
C42: =SUM(C27:C41) -> 1 | D42: =SUM(D27:D41) -> 1 | E42: 1 | F42: 1 | G42: 1 | H42: 1

Sheet CN9
A1: OBJECTID * | B1: NOME | C1: VALUE_3 | E1: VALUE_9 | F1: VALUE_11 | G1: VALUE_15 | H1: VALUE_20 | I1: VALUE_21 | J1: VALUE_24 | K1: VALUE_25 | L1: VALUE_33 | M1: VALUE_39 | N1: VALUE_41 | O1: VALUE_46 | Q1: VALUE_48
A2: 1 | B2: sub1 | C2: 700200 | D2: 0 | E2: 0 | F2: 0 | G2: 1647900 | H2: 1800 | I2: 54900 | J2: 76500 | K2: 0 | L2: 0 | M2: 0 | N2: 0 | O2: 532800 | P2: 0 | Q2: 0
A3: 2 | B3: sub2 | C3: 5461200 | D3: 0 | E3: 9000 | F3: 0 | G3: 2405700 | H3: 5044500 | I3: 898200 | J3: 610200 | K3: 54000 | L3: 0 | M3: 0 | N3: 144000 | O3: 216900 | P3: 0 | Q3: 0
A4: 3 | B4: sub3 | C4: 9351900 | D4: 0 | E4: 360000 | F4: 0 | G4: 7827300 | H4: 2232000 | I4: 1826100 | J4: 5085900 | K4: 841500 | L4: 6300 | M4: 0 | N4: 2203200 | O4: 6672600 | P4: 0 | Q4: 900
A5: 4 | B5: sub4 | C5: 4410900 | D5: 0 | E5: 486900 | F5: 0 | G5: 2937600 | H5: 1517400 | I5: 423900 | J5: 517500 | K5: 32400 | L5: 0 | M5: 900 | N5: 1538100 | O5: 3664800 | P5: 0 | Q5: 53100
A6: 5 | B6: sub5 | C6: 6445800 | D6: 0 | E6: 214200 | F6: 15300 | G6: 8915400 | H6: 659700 | I6: 918000 | J6: 4936500 | K6: 627300 | L6: 45900 | M6: 0 | N6: 866700 | O6: 3169800 | P6: 0 | Q6: 5400
A8: CN1
B9: NOME | C9: Formação Florestal | E9: Silvicultura | F9: Campos Alagados | G9: Pastagem | H9: Cana | I9: Mosaico de Usos | J9: Urbanização | K9: Áreas Não Vegetadas | L9: Rios | M9: Soja | N9: Lavouras Temporárias | O9: Café | Q9: Lavouras Perenes
B10: sub1 | C10: =C2/10^6 -> 0.7002 | D10: =D2/10^6 -> 0 | E10: =E2/10^6 -> 0 | F10: =F2/10^6 -> 0 | G10: =G2/10^6 -> 1.6479 | H10: 0.0018 | I10: 0.0549 | J10: 0.0765 | K10: 0 | L10: 0 | M10: 0 | N10: 0 | O10: 0.5328 | P10: 0 | Q10: 0 | T10: =SUM(C10:S10) -> 3.0141
B11: sub2 | C11: =C3/10^6 -> 5.4612 | D11: 0 | E11: 0.009 | F11: 0 | G11: 2.4057 | H11: 5.0445 | I11: 0.8982 | J11: 0.6102 | K11: 0.054 | L11: 0 | M11: 0 | N11: 0.144 | O11: 0.2169 | P11: 0 | Q11: 0 | T11: =SUM(C11:S11) -> 14.8437
B12: sub3 | C12: 9.3519 | D12: 0 | E12: 0.36 | F12: 0 | G12: 7.8273 | H12: 2.232 | I12: 1.8261 | J12: 5.0859 | K12: 0.8415 | L12: 0.0063 | M12: 0 | N12: 2.2032 | O12: 6.6726 | P12: 0 | Q12: 0.0009 | T12: 36.4077
B13: sub4 | C13: 4.4109 | D13: 0 | E13: 0.4869 | F13: 0 | G13: 2.9376 | H13: 1.5174 | I13: 0.4239 | J13: 0.5175 | K13: 0.0324 | L13: 0 | M13: 0.0009 | N13: 1.5381 | O13: 3.6648 | P13: 0 | Q13: 0.0531 | T13: 15.5835
B14: sub5 | C14: 6.4458 | D14: 0 | E14: 0.2142 | F14: 0.0153 | G14: 8.9154 | H14: 0.6597 | I14: 0.918 | J14: 4.9365 | K14: 0.6273 | L14: 0.0459 | M14: 0 | N14: 0.8667 | O14: 3.1698 | P14: 0 | Q14: 0.0054 | T14: 26.82
C15: =SUM(C10:C14) -> 26.37 | D15: =SUM(D10:D14) -> 0 | E15: =SUM(E10:E14) -> 1.0701 | F15: 0.0153 | G15: 23.7339 | H15: 9.4554 | I15: 4.1211 | J15: 11.2266 | K15: 1.5552 | L15: 0.0522 | M15: 0.0009 | N15: 4.752 | O15: 14.2569 | P15: 0 | Q15: 0.0594 | T15: =SUM(T10:T14) -> 96.669
C16: =C15/$T$15 -> 0.2727865189 | D16: 0 | E16: 0.0110697328 | F16: 0.0001582720417 | G16: 0.2455171772 | H16: 0.09781212178 | I16: 0.04263103994 | J16: 0.1161344381 | K16: 0.01608788753 | L16: 0.0005399869658 | M16: 9.310120101e-06 | N16: 0.04915743413 | O16: 0.1474816125 | P16: 0 | Q16: 0.0006144679266 | R16: =SUM(C16:Q16) -> 1
B17: NOME | C17: Formação Florestal | E17: Silvicultura | F17: Campos Alagados | G17: Pastagem | H17: Cana | I17: Mosaico de Usos | J17: Urbanização | K17: Áreas Não Vegetadas | L17: Rios | M17: Soja | N17: Lavouras Temporárias | O17: Café | Q17: Lavouras Perenes
B18: sub1 | C18: =(C10/$T10) -> 0.2323081517 | D18: 0 | E18: 0 | F18: 0 | G18: 0.5467303673 | H18: 0.000597193192 | I18: 0.01821439236 | J18: 0.02538071066 | K18: 0 | L18: 0 | M18: 0 | N18: 0 | O18: 0.1767691848 | P18: 0 | Q18: 0 | T18: =SUM(C18:S18) -> 1
B19: sub2 | C19: =(C11/$T11) -> 0.3679136603 | D19: =(D11/$T11) -> 0 | E19: =(E11/$T11) -> 0.0006063178318 | F19: 0 | G19: 0.1620687564 | H19: 0.3398411447 | I19: 0.06051051961 | J19: 0.041108349 | K19: 0.003637906991 | L19: 0 | M19: 0 | N19: 0.009701085309 | O19: 0.01461225975 | P19: =(P11/$T11) -> 0 | Q19: =(Q11/$T11) -> 0 | T19: =SUM(C19:S19) -> 1
B20: sub3 | C20: =(C12/$T12) -> 0.2568659926 | D20: 0 | E20: =(E12/$T12) -> 0.009888018194 | F20: 0 | G20: 0.2149902356 | H20: 0.0613057128 | I20: 0.05015697229 | J20: 0.139692977 | K20: 0.02311324253 | L20: 0.0001730403184 | M20: 0 | N20: 0.06051467135 | O20: 0.1832744172 | P20: 0 | Q20: =(Q12/$T12) -> 2.472004548e-05 | T20: 1
B21: sub4 | C21: =(C13/$T13) -> 0.2830493792 | D21: 0 | E21: =(E13/$T13) -> 0.03124458562 | F21: 0 | G21: 0.1885070748 | H21: 0.09737222062 | I21: 0.02720184811 | J21: 0.03320820098 | K21: 0.002079122148 | L21: 0 | M21: 5.775339301e-05 | N21: 0.09870054866 | O21: 0.2351718163 | P21: 0 | Q21: =(Q13/$T13) -> 0.003407450188 | T21: 1
B22: sub5 | C22: =(C14/$T14) -> 0.2403355705 | D22: 0 | E22: =(E14/$T14) -> 0.007986577181 | F22: 0.0005704697987 | G22: 0.3324161074 | H22: 0.02459731544 | I22: 0.03422818792 | J22: 0.1840604027 | K22: 0.02338926174 | L22: 0.001711409396 | M22: 0 | N22: 0.03231543624 | O22: 0.1181879195 | P22: 0 | Q22: =(Q14/$T14) -> 0.0002013422819 | T22: 1
B26: Classe | C26: sub1 | D26: sub2 | E26: sub3 | F26: sub4 | G26: sub5 | H26: sub24
B27: Formação Florestal | C27: 0.2323081517 | D27: 0.3679136603 | E27: 0.2568659926 | F27: 0.2830493792 | G27: 0.2403355705 | H27: 0.2727865189
B28: Formação Savânica | C28: 0 | D28: 0 | E28: 0 | F28: 0 | G28: 0 | H28: 0
B29: Silvicultura | C29: 0 | D29: 0.0006063178318 | E29: 0.009888018194 | F29: 0.03124458562 | G29: 0.007986577181 | H29: 0.0110697328
B30: Campos Alagados | C30: 0 | D30: 0 | E30: 0 | F30: 0 | G30: 0.0005704697987 | H30: 0.0001582720417
B31: Pastagem | C31: 0.5467303673 | D31: 0.1620687564 | E31: 0.2149902356 | F31: 0.1885070748 | G31: 0.3324161074 | H31: 0.2455171772
B32: Cana | C32: 0.000597193192 | D32: 0.3398411447 | E32: 0.0613057128 | F32: 0.09737222062 | G32: 0.02459731544 | H32: 0.09781212178
B33: Mosaico de Usos | C33: 0.01821439236 | D33: 0.06051051961 | E33: 0.05015697229 | F33: 0.02720184811 | G33: 0.03422818792 | H33: 0.04263103994
B34: Urbanização | C34: 0.02538071066 | D34: 0.041108349 | E34: 0.139692977 | F34: 0.03320820098 | G34: 0.1840604027 | H34: 0.1161344381
B35: Áreas Não Vegetadas | C35: 0 | D35: 0.003637906991 | E35: 0.02311324253 | F35: 0.002079122148 | G35: 0.02338926174 | H35: 0.01608788753
B36: Rios | C36: 0 | D36: 0 | E36: 0.0001730403184 | F36: 0 | G36: 0.001711409396 | H36: 0.0005399869658
B37: Soja | C37: 0 | D37: 0 | E37: 0 | F37: 5.775339301e-05 | G37: 0 | H37: 9.310120101e-06
B38: Lavouras Temporárias | C38: 0 | D38: 0.009701085309 | E38: 0.06051467135 | F38: 0.09870054866 | G38: 0.03231543624 | H38: 0.04915743413
B39: Café | C39: 0.1767691848 | D39: 0.01461225975 | E39: 0.1832744172 | F39: 0.2351718163 | G39: 0.1181879195 | H39: 0.1474816125
B40: Citrus | C40: 0 | D40: 0 | E40: 0 | F40: 0 | G40: 0 | H40: 0
B41: Lavouras Perenes | C41: 0 | D41: 0 | E41: 2.472004548e-05 | F41: 0.003407450188 | G41: 0.0002013422819 | H41: 0.0006144679266
C42: =SUM(C27:C41) -> 1 | E42: =SUM(E27:E41) -> 1 | F42: =SUM(F27:F41) -> 1 | G42: =SUM(G27:G41) -> 1 | H42: =SUM(H27:H41) -> 1

Sheet CN10
A1: OBJECTID * | B1: NOME | C1: VALUE_3 | E1: VALUE_9 | G1: VALUE_15 | H1: VALUE_20 | I1: VALUE_21 | J1: VALUE_24 | K1: VALUE_25 | L1: VALUE_33 | N1: VALUE_41 | O1: VALUE_46 | Q1: VALUE_48
A2: 1 | B2: sub1 | C2: 405000 | D2: 0 | E2: 0 | F2: 0 | G2: 1899000 | H2: 5400 | I2: 0 | J2: 149400 | K2: 0 | L2: 0 | M2: 0 | N2: 0 | O2: 552600 | P2: 0 | Q2: 0 | R2: =SUM(C2:Q2)/10^6 -> 3.0114
A3: 2 | B3: sub2 | C3: 4636800 | D3: 0 | E3: 13500 | F3: 0 | G3: 2817900 | H3: 5167800 | I3: 0 | J3: 1659600 | K3: 91800 | L3: 22500 | M3: 0 | N3: 207900 | O3: 211500 | P3: 0 | Q3: 0 | R3: =SUM(C3:Q3)/10^6 -> 14.8293
A4: 3 | B4: sub3 | C4: 7037100 | D4: 0 | E4: 576000 | F4: 0 | G4: 9009900 | H4: 2260800 | I4: 3600 | J4: 7139700 | K4: 1001700 | L4: 16200 | M4: 0 | N4: 2322900 | O4: 7033500 | P4: 0 | Q4: 0 | R4: 36.4014
A5: 4 | B5: sub4 | C5: 3904200 | D5: 0 | E5: 544500 | F5: 0 | G5: 3233700 | H5: 1530000 | I5: 120600 | J5: 793800 | K5: 32400 | L5: 10800 | M5: 0 | N5: 1604700 | O5: 3716100 | P5: 0 | Q5: 53100 | R5: 15.5439
A6: 5 | B6: sub5 | C6: 4934700 | D6: 0 | E6: 224100 | F6: 0 | G6: 9828000 | H6: 683100 | I6: 13500 | J6: 6167700 | K6: 767700 | L6: 70200 | M6: 0 | N6: 947700 | O6: 3233700 | P6: 0 | Q6: 0 | R6: 26.8704
R7: =SUM(R2:R6) -> 96.6564
A11: CN1
B12: NOME | C12: Formação Florestal | E12: Silvicultura | G12: Pastagem | H12: Cana | I12: Mosaico de Usos | J12: Urbanização | K12: Áreas Não Vegetadas | L12: Rios | N12: Lavouras Temporárias | O12: Café | Q12: Lavouras Perenes
B13: sub1 | C13: =C2/10^6 -> 0.405 | D13: =D2/10^6 -> 0 | E13: =E2/10^6 -> 0 | F13: 0 | G13: 1.899 | H13: 0.0054 | I13: 0 | J13: 0.1494 | K13: 0 | L13: 0 | M13: 0 | N13: 0 | O13: 0.5526 | P13: 0 | Q13: 0 | R13: =SUM(C13:Q13) -> 3.0114
B14: sub2 | C14: =C3/10^6 -> 4.6368 | D14: 0 | E14: 0.0135 | F14: 0 | G14: 2.8179 | H14: 5.1678 | I14: 0 | J14: 1.6596 | K14: 0.0918 | L14: 0.0225 | M14: 0 | N14: 0.2079 | O14: 0.2115 | P14: 0 | Q14: 0 | R14: =SUM(C14:Q14) -> 14.8293
B15: sub3 | C15: 7.0371 | D15: 0 | E15: 0.576 | F15: 0 | G15: 9.0099 | H15: 2.2608 | I15: 0.0036 | J15: 7.1397 | K15: 1.0017 | L15: 0.0162 | M15: 0 | N15: 2.3229 | O15: 7.0335 | P15: 0 | Q15: 0 | R15: 36.4014
B16: sub4 | C16: 3.9042 | D16: 0 | E16: 0.5445 | F16: 0 | G16: 3.2337 | H16: 1.53 | I16: 0.1206 | J16: 0.7938 | K16: 0.0324 | L16: 0.0108 | M16: 0 | N16: 1.6047 | O16: 3.7161 | P16: 0 | Q16: 0.0531 | R16: 15.5439
B17: sub5 | C17: 4.9347 | D17: 0 | E17: 0.2241 | F17: 0 | G17: 9.828 | H17: 0.6831 | I17: 0.0135 | J17: 6.1677 | K17: 0.7677 | L17: 0.0702 | M17: 0 | N17: 0.9477 | O17: 3.2337 | P17: 0 | Q17: 0 | R17: 26.8704
C18: =SUM(C13:C17) -> 20.9178 | D18: =SUM(D13:D17) -> 0 | E18: =SUM(E13:E17) -> 1.3581 | F18: 0 | G18: 26.7885 | H18: 9.6471 | I18: 0.1377 | J18: 15.9102 | K18: 1.8936 | L18: 0.1197 | M18: 0 | N18: 5.0832 | O18: 14.7474 | P18: 0 | Q18: 0.0531 | R18: =SUM(R13:R17) -> 96.6564
C19: =C18/$R$18 -> 0.2164140191 | D19: 0 | E19: 0.01405080264 | F19: 0 | G19: 0.2771518492 | H19: 0.09980818652 | I19: 0.001424634065 | J19: 0.1646057581 | K19: 0.01959104622 | L19: 0.001238407389 | M19: 0 | N19: 0.05259041305 | O19: 0.1525755149 | P19: 0 | Q19: 0.0005493686916 | R19: =SUM(C19:Q19) -> 1
B20: NOME | C20: Formação Florestal | E20: Silvicultura | G20: Pastagem | H20: Cana | I20: Mosaico de Usos | J20: Urbanização | K20: Áreas Não Vegetadas | L20: Rios | N20: Lavouras Temporárias | O20: Café | Q20: Lavouras Perenes
B21: sub1 | C21: =(C13/$R13) -> 0.134488942 | D21: 0 | E21: 0 | F21: 0 | G21: 0.6306037059 | H21: 0.001793185894 | I21: 0 | J21: 0.04961147639 | K21: 0 | L21: 0 | M21: 0 | N21: 0 | O21: 0.1835026898 | P21: 0 | Q21: 0 | R21: =SUM(C21:Q21) -> 1
B22: sub2 | C22: =(C14/$R14) -> 0.3126782788 | D22: =(D14/$R14) -> 0 | E22: =(E14/$R14) -> 0.0009103598956 | F22: =(F14/$R14) -> 0 | G22: =(G14/$R14) -> 0.1900224555 | H22: 0.348485768 | I22: 0 | J22: 0.1119135765 | K22: 0.00619044729 | L22: 0.001517266493 | M22: =(M14/$R14) -> 0 | N22: =(N14/$R14) -> 0.01401954239 | O22: =(O14/$R14) -> 0.01426230503 | P22: =(P14/$R14) -> 0 | Q22: =(Q14/$R14) -> 0 | R22: =SUM(C22:Q22) -> 1
B23: sub3 | C23: =(C15/$R15) -> 0.1933194877 | D23: 0 | E23: 0.01582356723 | F23: 0 | G23: 0.2475152055 | H23: 0.06210750136 | I23: 9.889729516e-05 | J23: 0.1961380606 | K23: 0.02751817238 | L23: 0.0004450378282 | M23: 0 | N23: 0.0638134797 | O23: 0.1932205904 | P23: 0 | Q23: 0 | R23: 1
B24: sub4 | C24: =(C16/$R16) -> 0.2511724857 | D24: 0 | E24: 0.03502981877 | F24: 0 | G24: 0.2080365931 | H24: 0.09843089572 | I24: 0.007758670604 | J24: 0.05106826472 | K24: 0.002084418968 | L24: 0.0006948063227 | M24: 0 | N24: 0.1032366395 | O24: 0.2390712755 | P24: 0 | Q24: 0.003416131087 | R24: 1
B25: sub5 | C25: =(C17/$R17) -> 0.1836481779 | D25: 0 | E25: 0.008340032154 | F25: 0 | G25: 0.365755627 | H25: 0.02542202572 | I25: 0.0005024115756 | J25: 0.2295351018 | K25: 0.0285704716 | L25: 0.002612540193 | M25: 0 | N25: 0.0352692926 | O25: 0.1203443194 | P25: 0 | Q25: 0 | R25: 1
B29: Classe | C29: sub1 | D29: sub2 | E29: sub3 | F29: sub4 | G29: sub5 | H29: sub24
B30: Formação Florestal | C30: 0.134488942 | D30: 0.3126782788 | E30: 0.1933194877 | F30: 0.2511724857 | G30: 0.1836481779 | H30: 0.2164140191
B31: Formação Savânica | C31: 0 | D31: 0 | E31: 0 | F31: 0 | G31: 0 | H31: 0
B32: Silvicultura | C32: 0 | D32: 0.0009103598956 | E32: 0.01582356723 | F32: 0.03502981877 | G32: 0.008340032154 | H32: 0.01405080264
B33: Pastagem | C33: 0 | D33: 0 | E33: 0 | F33: 0 | G33: 0 | H33: 0
B34: Campos Alagados | C34: 0.6306037059 | D34: 0.1900224555 | E34: 0.2475152055 | F34: 0.2080365931 | G34: 0.365755627 | H34: 0.2771518492
B35: Cana | C35: 0.001793185894 | D35: 0.348485768 | E35: 0.06210750136 | F35: 0.09843089572 | G35: 0.02542202572 | H35: 0.09980818652
B36: Mosaico de Usos | C36: 0 | D36: 0 | E36: 9.889729516e-05 | F36: 0.007758670604 | G36: 0.0005024115756 | H36: 0.001424634065
B37: Urbanização | C37: 0.04961147639 | D37: 0.1119135765 | E37: 0.1961380606 | F37: 0.05106826472 | G37: 0.2295351018 | H37: 0.1646057581
B38: Áreas Não Vegetadas | C38: 0 | D38: 0.00619044729 | E38: 0.02751817238 | F38: 0.002084418968 | G38: 0.0285704716 | H38: 0.01959104622
B39: Rios | C39: 0 | D39: 0.001517266493 | E39: 0.0004450378282 | F39: 0.0006948063227 | G39: 0.002612540193 | H39: 0.001238407389
B40: Soja | C40: 0 | D40: 0 | E40: 0 | F40: 0 | G40: 0 | H40: 0
B41: Lavouras Temporárias | C41: 0 | D41: 0.01401954239 | E41: 0.0638134797 | F41: 0.1032366395 | G41: 0.0352692926 | H41: 0.05259041305
B42: Café | C42: 0.1835026898 | D42: 0.01426230503 | E42: 0.1932205904 | F42: 0.2390712755 | G42: 0.1203443194 | H42: 0.1525755149
B43: Citrus | C43: 0 | D43: 0 | E43: 0 | F43: 0 | G43: 0 | H43: 0
B44: Lavouras Perenes | C44: 0 | D44: 0 | E44: 0 | F44: 0.003416131087 | G44: 0 | H44: 0.0005493686916
C45: 100 | D45: 100 | E45: 100 | F45: 100 | G45: 100 | H45: 100

Sheet CN11
A1: OBJECTID * | B1: NOME | C1: VALUE_3 | E1: VALUE_9 | G1: VALUE_15 | H1: VALUE_20 | I1: VALUE_21 | J1: VALUE_24 | K1: VALUE_25 | L1: VALUE_33 | N1: VALUE_41 | O1: VALUE_46 | Q1: VALUE_48
A2: 1 | B2: sub1 | C2: 565200 | D2: 0 | E2: 0 | F2: 0 | G2: 1755000 | H2: 1800 | I2: 0 | J2: 140400 | K2: 0 | L2: 0 | M2: 0 | N2: 0 | O2: 551700 | P2: 0 | Q2: 0
A3: 2 | B3: sub2 | C3: 5092200 | D3: 0 | E3: 9900 | F3: 0 | G3: 2565000 | H3: 5134500 | I3: 0 | J3: 1582200 | K3: 65700 | L3: 0 | M3: 0 | N3: 177300 | O3: 216900 | P3: 0 | Q3: 0
A4: 3 | B4: sub3 | C4: 8309700 | D4: 0 | E4: 412200 | F4: 0 | G4: 8331300 | H4: 2240100 | I4: 3600 | J4: 7029900 | K4: 889200 | L4: 5400 | M4: 0 | N4: 2286900 | O4: 6899400 | P4: 0 | Q4: 0
A5: 4 | B5: sub4 | C5: 4176000 | D5: 0 | E5: 503100 | F5: 0 | G5: 3088800 | H5: 1537200 | I5: 115200 | J5: 819900 | K5: 33300 | L5: 0 | M5: 0 | N5: 1562400 | O5: 3694500 | P5: 0 | Q5: 53100
A6: 5 | B6: sub5 | C6: 5749200 | D6: 0 | E6: 218700 | F6: 0 | G6: 9276300 | H6: 666900 | I6: 13500 | J6: 6067800 | K6: 663300 | L6: 45900 | M6: 0 | N6: 913500 | O6: 3204900 | P6: 0 | Q6: 0
A8: CN1
B9: NOME | C9: Formação Florestal | D9: Formação Savânica | E9: Silvicultura | F9: Campos Alagados | G9: Pastagem | H9: Cana | I9: Mosaico de Usos | J9: Urbanização | K9: Áreas Não Vegetadas | L9: Rios | M9: Soja | N9: Lavouras Temporárias | O9: Café | P9: Citrus | Q9: Lavouras Perenes
B10: sub1 | C10: =C2/10^6 -> 0.5652 | D10: =D2/10^6 -> 0 | E10: 0 | F10: 0 | G10: 1.755 | H10: 0.0018 | I10: 0 | J10: 0.1404 | K10: 0 | L10: 0 | M10: 0 | N10: 0 | O10: 0.5517 | P10: 0 | Q10: 0 | T10: =SUM(C10:Q10) -> 3.0141
B11: sub2 | C11: =C3/10^6 -> 5.0922 | D11: 0 | E11: 0.0099 | F11: 0 | G11: 2.565 | H11: 5.1345 | I11: 0 | J11: 1.5822 | K11: 0.0657 | L11: 0 | M11: 0 | N11: 0.1773 | O11: 0.2169 | P11: 0 | Q11: 0 | T11: =SUM(C11:Q11) -> 14.8437
B12: sub3 | C12: =C4/10^6 -> 8.3097 | D12: 0 | E12: 0.4122 | F12: 0 | G12: 8.3313 | H12: 2.2401 | I12: 0.0036 | J12: 7.0299 | K12: 0.8892 | L12: 0.0054 | M12: 0 | N12: 2.2869 | O12: 6.8994 | P12: 0 | Q12: 0 | T12: 36.4077
B13: sub4 | C13: =C5/10^6 -> 4.176 | D13: 0 | E13: 0.5031 | F13: 0 | G13: 3.0888 | H13: 1.5372 | I13: 0.1152 | J13: 0.8199 | K13: 0.0333 | L13: 0 | M13: 0 | N13: 1.5624 | O13: 3.6945 | P13: 0 | Q13: 0.0531 | T13: 15.5835
B14: sub5 | C14: =C6/10^6 -> 5.7492 | D14: 0 | E14: 0.2187 | F14: 0 | G14: 9.2763 | H14: 0.6669 | I14: 0.0135 | J14: 6.0678 | K14: 0.6633 | L14: 0.0459 | M14: 0 | N14: 0.9135 | O14: 3.2049 | P14: 0 | Q14: 0 | T14: 26.82
C15: =SUM(C10:C14) -> 23.8923 | D15: =SUM(D10:D14) -> 0 | E15: 1.1439 | F15: 0 | G15: 25.0164 | H15: 9.5805 | I15: 0.1323 | J15: 15.6402 | K15: 1.6515 | L15: 0.0513 | M15: 0 | N15: 4.9401 | O15: 14.5674 | P15: 0 | Q15: 0.0531 | T15: =SUM(T10:T14) -> 96.669
C16: =C15/$T$15 -> 0.2471557583 | D16: 0 | E16: 0.01183316265 | F16: 0 | G16: 0.2587840983 | H16: 0.09910622847 | I16: 0.001368587655 | J16: 0.1617912671 | K16: 0.01708407038 | L16: 0.0005306768457 | M16: 0 | N16: 0.05110324923 | O16: 0.1506936039 | P16: 0 | Q16: 0.0005492970859 | R16: =SUM(C16:Q16) -> 1
B19: NOME | C19: Formação Florestal | E19: Silvicultura | F19: Campos Alagados | G19: Pastagem | H19: Cana | I19: Mosaico de Usos | J19: Urbanização | K19: Áreas Não Vegetadas | L19: Rios | M19: Soja | N19: Lavouras Temporárias | O19: Café | Q19: Lavouras Perenes
B20: sub1 | C20: =(C10/$T10) -> 0.1875186623 | D20: 0 | E20: 0 | F20: 0 | G20: 0.5822633622 | H20: 0.000597193192 | I20: 0 | J20: 0.04658106898 | K20: 0 | L20: 0 | M20: 0 | N20: 0 | O20: 0.1830397133 | P20: 0 | Q20: 0 | T20: =SUM(C20:S20) -> 1
B21: sub2 | C21: =(C11/$T11) -> 0.3430546292 | D21: =(D11/$T11) -> 0 | E21: =(E11/$T11) -> 0.000666949615 | F21: 0 | G21: 0.1728005821 | H21: 0.345904323 | I21: 0 | J21: 0.1065906748 | K21: 0.004426120172 | L21: 0 | M21: 0 | N21: 0.01194446129 | O21: 0.01461225975 | P21: =(P11/$T11) -> 0 | Q21: =(Q11/$T11) -> 0 | T21: =SUM(C21:S21) -> 1
B22: sub3 | C22: =(C12/$T12) -> 0.22824018 | D22: 0 | E22: =(E12/$T12) -> 0.01132178083 | F22: 0 | G22: 0.2288334611 | H22: 0.06152819321 | I22: 9.888018194e-05 | J22: 0.1930882753 | K22: 0.02442340494 | L22: 0.0001483202729 | M22: 0 | N22: 0.06281363558 | O22: 0.1895038687 | P22: 0 | Q22: =(Q12/$T12) -> 0 | T22: =SUM(C22:S22) -> 1
B23: sub4 | C23: =(C13/$T13) -> 0.2679757436 | D23: 0 | E23: =(E13/$T13) -> 0.03228414669 | F23: 0 | G23: 0.1982096448 | H23: 0.09864279526 | I23: 0.007392434306 | J23: 0.05261334103 | K23: 0.002136875541 | L23: 0 | M23: 0 | N23: 0.1002598903 | O23: 0.2370776783 | P23: 0 | Q23: =(Q13/$T13) -> 0.003407450188 | T23: =SUM(C23:S23) -> 1
B24: sub5 | C24: =(C14/$T14) -> 0.2143624161 | D24: 0 | E24: =(E14/$T14) -> 0.008154362416 | F24: 0 | G24: 0.3458724832 | H24: 0.02486577181 | I24: 0.0005033557047 | J24: 0.2262416107 | K24: 0.02473154362 | L24: 0.001711409396 | M24: 0 | N24: 0.03406040268 | O24: 0.1194966443 | P24: 0 | Q24: =(Q14/$T14) -> 0 | T24: =SUM(C24:S24) -> 1
B28: Classe | C28: sub1 | D28: sub2 | E28: sub3 | F28: sub4 | G28: sub5 | H28: sub24
B29: Formação Florestal | C29: 0.1875186623 | D29: 0.3430546292 | E29: 0.22824018 | F29: 0.2679757436 | G29: 0.2143624161 | H29: 0.2471557583
B30: Formação Savânica | C30: 0 | D30: 0 | E30: 0 | F30: 0 | G30: 0 | H30: 0
B31: Silvicultura | C31: 0 | D31: 0.000666949615 | E31: 0.01132178083 | F31: 0.03228414669 | G31: 0.008154362416 | H31: 0.01183316265
B32: Campos Alagados | C32: 0 | D32: 0 | E32: 0 | F32: 0 | G32: 0 | H32: 0
B33: Pastagem | C33: 0.5822633622 | D33: 0.1728005821 | E33: 0.2288334611 | F33: 0.1982096448 | G33: 0.3458724832 | H33: 0.2587840983
B34: Cana | C34: 0.000597193192 | D34: 0.345904323 | E34: 0.06152819321 | F34: 0.09864279526 | G34: 0.02486577181 | H34: 0.09910622847
B35: Mosaico de Usos | C35: 0 | D35: 0 | E35: 9.888018194e-05 | F35: 0.007392434306 | G35: 0.0005033557047 | H35: 0.001368587655
B36: Urbanização | C36: 0.04658106898 | D36: 0.1065906748 | E36: 0.1930882753 | F36: 0.05261334103 | G36: 0.2262416107 | H36: 0.1617912671
B37: Áreas Não Vegetadas | C37: 0 | D37: 0.004426120172 | E37: 0.02442340494 | F37: 0.002136875541 | G37: 0.02473154362 | H37: 0.01708407038
B38: Rios | C38: 0 | D38: 0 | E38: 0.0001483202729 | F38: 0 | G38: 0.001711409396 | H38: 0.0005306768457
B39: Soja | C39: 0 | D39: 0 | E39: 0 | F39: 0 | G39: 0 | H39: 0
B40: Lavouras Temporárias | C40: 0 | D40: 0.01194446129 | E40: 0.06281363558 | F40: 0.1002598903 | G40: 0.03406040268 | H40: 0.05110324923
B41: Café | C41: 0.1830397133 | D41: 0.01461225975 | E41: 0.1895038687 | F41: 0.2370776783 | G41: 0.1194966443 | H41: 0.1506936039
B42: Citrus | C42: 0 | D42: 0 | E42: 0 | F42: 0 | G42: 0 | H42: 0
B43: Lavouras Perenes | C43: 0 | D43: 0 | E43: 0 | F43: 0.003407450188 | G43: 0 | H43: 0.0005492970859
C44: =SUM(C29:C43) -> 1 | D44: =SUM(D29:D43) -> 1 | E44: 1 | F44: 1 | G44: 1 | H44: 1

Sheet CN12
A1: OBJECTID * | B1: NOME | C1: VALUE_3 | E1: VALUE_9 | G1: VALUE_15 | H1: VALUE_20 | I1: VALUE_21 | J1: VALUE_24 | K1: VALUE_25 | L1: VALUE_33 | N1: VALUE_41 | O1: VALUE_46 | Q1: VALUE_48 | V1: OBJECTID * | W1: NOME | X1: VALUE_3 | Y1: VALUE_9 | Z1: VALUE_15 | AA1: VALUE_20 | AB1: VALUE_21 | AC1: VALUE_24 | AD1: VALUE_25 | AE1: VALUE_33 | AF1: VALUE_41 | AG1: VALUE_46 | AH1: VALUE_48
A2: 1 | B2: sub1 | C2: 684000 | D2: 0 | E2: 0 | F2: 0 | G2: 1655100 | H2: 900 | I2: 0 | J2: 143100 | K2: 0 | L2: 0 | M2: 0 | N2: 0 | O2: 528300 | P2: 0 | Q2: 0 | V2: 1 | W2: sub1 | X2: 684000 | Y2: 0 | Z2: 1655100 | AA2: 900 | AB2: 0 | AC2: 143100 | AD2: 0 | AE2: 0 | AF2: 0 | AG2: 528300 | AH2: 0
A3: 2 | B3: sub2 | C3: 5461200 | D3: 0 | E3: 9000 | F3: 0 | G3: 2397600 | H3: 5036400 | I3: 0 | J3: 1514700 | K3: 54900 | L3: 0 | M3: 0 | N3: 144000 | O3: 211500 | P3: 0 | Q3: 0 | V3: 2 | W3: sub2 | X3: 5461200 | Y3: 9000 | Z3: 2397600 | AA3: 5036400 | AB3: 0 | AC3: 1514700 | AD3: 54900 | AE3: 0 | AF3: 144000 | AG3: 211500 | AH3: 0
A4: 3 | B4: sub3 | C4: 9362700 | D4: 0 | E4: 360000 | F4: 0 | G4: 7823700 | H4: 2250900 | I4: 3600 | J4: 6972300 | K4: 805500 | L4: 6300 | M4: 0 | N4: 2194200 | O4: 6622200 | P4: 0 | Q4: 0 | V4: 3 | W4: sub3 | X4: 9362700 | Y4: 360000 | Z4: 7823700 | AA4: 2250900 | AB4: 3600 | AC4: 6972300 | AD4: 805500 | AE4: 6300 | AF4: 2194200 | AG4: 6622200 | AH4: 0
A5: 4 | B5: sub4 | C5: 4413600 | D5: 0 | E5: 487800 | F5: 0 | G5: 2927700 | H5: 1499400 | I5: 120600 | J5: 789300 | K5: 32400 | L5: 0 | M5: 0 | N5: 1547100 | O5: 3672900 | P5: 0 | Q5: 53100 | V5: 4 | W5: sub4 | X5: 4413600 | Y5: 487800 | Z5: 2927700 | AA5: 1499400 | AB5: 120600 | AC5: 789300 | AD5: 32400 | AE5: 0 | AF5: 1547100 | AG5: 3672900 | AH5: 53100
A6: 5 | B6: sub5 | C6: 6391800 | D6: 0 | E6: 216000 | F6: 0 | G6: 8848800 | H6: 675900 | I6: 13500 | J6: 5989500 | K6: 622800 | L6: 45900 | M6: 0 | N6: 879300 | O6: 3180600 | P6: 0 | Q6: 0 | V6: 5 | W6: sub5 | X6: 6391800 | Y6: 216000 | Z6: 8848800 | AA6: 675900 | AB6: 13500 | AC6: 5989500 | AD6: 622800 | AE6: 45900 | AF6: 879300 | AG6: 3180600 | AH6: 0
A8: CN1
B9: NOME | C9: Formação Florestal | D9: Formação Savânica | E9: Silvicultura | F9: Campos Alagados | G9: Pastagem | H9: Cana | I9: Mosaico de Usos | J9: Urbanização | K9: Áreas Não Vegetadas | L9: Rios | M9: Soja | N9: Lavouras Temporárias | O9: Café | P9: Citrus | Q9: Lavouras Perenes
B10: sub1 | C10: =C2/10^6 -> 0.684 | D10: =D2/10^6 -> 0 | E10: 0 | F10: 0 | G10: 1.6551 | H10: 0.0009 | I10: 0 | J10: 0.1431 | K10: 0 | L10: 0 | M10: 0 | N10: 0 | O10: 0.5283 | P10: 0 | Q10: 0 | T10: =SUM(C10:Q10) -> 3.0114
B11: sub2 | C11: =C3/10^6 -> 5.4612 | D11: =D3/10^6 -> 0 | E11: 0.009 | F11: 0 | G11: 2.3976 | H11: 5.0364 | I11: 0 | J11: 1.5147 | K11: 0.0549 | L11: 0 | M11: 0 | N11: 0.144 | O11: 0.2115 | P11: 0 | Q11: 0 | T11: =SUM(C11:Q11) -> 14.8293
B12: sub3 | C12: =C4/10^6 -> 9.3627 | D12: 0 | E12: 0.36 | F12: 0 | G12: 7.8237 | H12: 2.2509 | I12: 0.0036 | J12: 6.9723 | K12: 0.8055 | L12: 0.0063 | M12: 0 | N12: 2.1942 | O12: 6.6222 | P12: 0 | Q12: 0 | T12: 36.4014
B13: sub4 | C13: =C5/10^6 -> 4.4136 | D13: 0 | E13: 0.4878 | F13: 0 | G13: 2.9277 | H13: 1.4994 | I13: 0.1206 | J13: 0.7893 | K13: 0.0324 | L13: 0 | M13: 0 | N13: 1.5471 | O13: 3.6729 | P13: 0 | Q13: 0.0531 | T13: 15.5439
B14: sub5 | C14: =C6/10^6 -> 6.3918 | D14: 0 | E14: 0.216 | F14: 0 | G14: 8.8488 | H14: 0.6759 | I14: 0.0135 | J14: 5.9895 | K14: 0.6228 | L14: 0.0459 | M14: 0 | N14: 0.8793 | O14: 3.1806 | P14: 0 | Q14: 0 | T14: 26.8641
C15: =SUM(C10:C14) -> 26.3133 | D15: =SUM(D10:D14) -> 0 | E15: 1.0728 | F15: 0 | G15: 23.6529 | H15: 9.4635 | I15: 0.1377 | J15: 15.4089 | K15: 1.5156 | L15: 0.0522 | M15: 0 | N15: 4.7646 | O15: 14.2155 | P15: 0 | Q15: 0.0531 | T15: =SUM(T10:T14) -> 96.6501
C16: =C15/$T$15 -> 0.2722532103 | D16: 0 | E16: 0.01109983332 | F16: 0 | G16: 0.2447271136 | H16: 0.09791505648 | I16: 0.001424726927 | J16: 0.1594297368 | K16: 0.01568130814 | L16: 0.0005400925607 | M16: 0 | N16: 0.04929741407 | O16: 0.1470821034 | P16: 0 | Q16: 0.0005494045014 | R16: =SUM(C16:Q16) -> 1
B19: NOME | C19: Formação Florestal | E19: Silvicultura | F19: Campos Alagados | G19: Pastagem | H19: Cana | I19: Mosaico de Usos | J19: Urbanização | K19: Áreas Não Vegetadas | L19: Rios | M19: Soja | N19: Lavouras Temporárias | O19: Café | Q19: Lavouras Perenes
B20: sub1 | C20: =(C10/$T10) -> 0.2271368799 | D20: 0 | E20: 0 | F20: 0 | G20: 0.5496114764 | H20: 0.0002988643156 | I20: 0 | J20: 0.04751942618 | K20: 0 | L20: 0 | M20: 0 | N20: 0 | O20: 0.1754333533 | P20: 0 | Q20: 0 | T20: =SUM(C20:S20) -> 1
B21: sub2 | C21: =(C11/$T11) -> 0.3682709231 | D21: =(D11/$T11) -> 0 | E21: =(E11/$T11) -> 0.0006069065971 | F21: 0 | G21: 0.1616799175 | H21: 0.3396249317 | I21: 0 | J21: 0.1021423803 | K21: 0.003702130242 | L21: 0 | M21: 0 | N21: 0.009710505553 | O21: 0.01426230503 | P21: =(P11/$T11) -> 0 | Q21: =(Q11/$T11) -> 0 | T21: =SUM(C21:S21) -> 1
B22: sub3 | C22: =(C12/$T12) -> 0.2572071404 | D22: 0 | E22: =(E12/$T12) -> 0.009889729516 | F22: 0 | G22: 0.2149285467 | H22: 0.0618355338 | I22: 9.889729516e-05 | J22: 0.1915393364 | K22: 0.02212826979 | L22: 0.0001730702665 | M22: 0 | N22: 0.0602779014 | O22: 0.1819215744 | P22: 0 | Q22: =(Q12/$T12) -> 0 | T22: =SUM(C22:S22) -> 1
B23: sub4 | C23: =(C13/$T13) -> 0.2839441839 | D23: 0 | E23: =(E13/$T13) -> 0.03138208558 | F23: 0 | G23: 0.188350414 | H23: 0.09646227781 | I23: 0.007758670604 | J23: 0.05077876209 | K23: 0.002084418968 | L23: 0 | M23: 0 | N23: 0.09953100573 | O23: 0.2362920503 | P23: 0 | Q23: =(Q13/$T13) -> 0.003416131087 | T23: =SUM(C23:S23) -> 1
B24: sub5 | C24: =(C14/$T14) -> 0.237930919 | D24: 0 | E24: =(E14/$T14) -> 0.008040470368 | F24: 0 | G24: 0.3293912694 | H24: 0.02515997186 | I24: 0.000502529398 | J24: 0.2229555429 | K24: 0.02318335623 | L24: 0.001708599953 | M24: 0 | N24: 0.03273141479 | O24: 0.1183959262 | P24: 0 | Q24: =(Q14/$T14) -> 0 | T24: =SUM(C24:S24) -> 1
B28: Classe | C28: sub1 | D28: sub2 | E28: sub3 | F28: sub4 | G28: sub5 | H28: sub24
B29: Formação Florestal | C29: 0.2271368799 | D29: 0.3682709231 | E29: 0.2572071404 | F29: 0.2839441839 | G29: 0.237930919 | H29: 0.2722532103
B30: Formação Savânica | C30: 0 | D30: 0 | E30: 0 | F30: 0 | G30: 0 | H30: 0
B31: Silvicultura | C31: 0 | D31: 0.0006069065971 | E31: 0.009889729516 | F31: 0.03138208558 | G31: 0.008040470368 | H31: 0.01109983332
B32: Campos Alagados | C32: 0 | D32: 0 | E32: 0 | F32: 0 | G32: 0 | H32: 0
B33: Pastagem | C33: 0.5496114764 | D33: 0.1616799175 | E33: 0.2149285467 | F33: 0.188350414 | G33: 0.3293912694 | H33: 0.2447271136
B34: Cana | C34: 0.0002988643156 | D34: 0.3396249317 | E34: 0.0618355338 | F34: 0.09646227781 | G34: 0.02515997186 | H34: 0.09791505648
B35: Mosaico de Usos | C35: 0 | D35: 0 | E35: 9.889729516e-05 | F35: 0.007758670604 | G35: 0.000502529398 | H35: 0.001424726927
B36: Urbanização | C36: 0.04751942618 | D36: 0.1021423803 | E36: 0.1915393364 | F36: 0.05077876209 | G36: 0.2229555429 | H36: 0.1594297368
B37: Áreas Não Vegetadas | C37: 0 | D37: 0.003702130242 | E37: 0.02212826979 | F37: 0.002084418968 | G37: 0.02318335623 | H37: 0.01568130814
B38: Rios | C38: 0 | D38: 0 | E38: 0.0001730702665 | F38: 0 | G38: 0.001708599953 | H38: 0.0005400925607
B39: Soja | C39: 0 | D39: 0 | E39: 0 | F39: 0 | G39: 0 | H39: 0
B40: Lavouras Temporárias | C40: 0 | D40: 0.009710505553 | E40: 0.0602779014 | F40: 0.09953100573 | G40: 0.03273141479 | H40: 0.04929741407
B41: Café | C41: 0.1754333533 | D41: 0.01426230503 | E41: 0.1819215744 | F41: 0.2362920503 | G41: 0.1183959262 | H41: 0.1470821034
B42: Citrus | C42: 0 | D42: 0 | E42: 0 | F42: 0 | G42: 0 | H42: 0
B43: Lavouras Perenes | C43: 0 | D43: 0 | E43: 0 | F43: 0.003416131087 | G43: 0 | H43: 0.0005494045014
C44: =SUM(C29:C43) -> 1 | D44: =SUM(D29:D43) -> 1 | E44: 1 | F44: 1 | G44: 1 | H44: 1
